{"text_format":"1","workbook":"xlsx","n_sheets":5,"sheets":["Accueil","Emploi du temps","Liste des cours","NOTES DEVOIRS","RELEVE GLOBAL"],"not_rendered":{"charts":0,"images":4,"macros":1,"external_links":1,"defined_names":18,"comments":0,"pivot_tables":0},"unopened":[],"bounds":{"document_bytes":16777216,"sheet_cells":100000,"rows_first":2000,"rows_last":500,"rows_between":2000,"halvings":0,"cell_chars":16384,"cell_head_chars":4096},"cells_cut":0,"cells_raw":0,"read":"whole","date_system":"1900"}

{"sheet":"Accueil","index":0,"n_rows":0,"n_cols":0,"rows_kept":0,"cut":false,"hidden":false,"merged":[[15,1,15,2],[16,1,16,2],[17,1,17,2]]}

{"sheet":"Emploi du temps","index":1,"n_rows":56,"n_cols":9,"rows_kept":56,"cut":false,"hidden":false,"merged":[[0,1,1,5],[0,8,1,8]]}
[null,"EMPLOI DU TEMPS",null,null,null,null,"DÉBUT DE L’EMPLOI DU TEMPS","INTERVALLE TEMPOREL","Liste des cours"]
[null,null,null,null,null,null,"07:00:00","15 MIN"]
[null,"HEURE","LUNDI","MARDI","MERCREDI","JEUDI","VENDREDI","SAMEDI","DIMANCHE"]
[null,{"$f":"Début","v":"07:00:00"},{"$f":"IFERROR(INDEX(ListeCours[],MATCH(SUMPRODUCT((ListeCours[AGENDA]=EmploiDuTemps[[#Headers],[LUNDI]])*(ROUNDDOWN($B4,10)>=ROUNDDOWN(ListeCours[HEURE DE DÉBUT],10))*($B4<=ListeCours[HEURE DE FIN]),ListeCours[UNIQUE]),ListeCours[UNIQUE],0),2),0)","v":0},{"$f":"IFERROR(INDEX(ListeCours[],MATCH(SUMPRODUCT((ListeCours[AGENDA]=EmploiDuTemps[[#Headers],[MARDI]])*(ROUNDDOWN($B4,10)>=ROUNDDOWN(ListeCours[HEURE DE DÉBUT],10))*($B4<=ListeCours[HEURE DE FIN]),ListeCours[UNIQUE]),ListeCours[UNIQUE],0),2),0)","v":0},{"$f":"IFERROR(INDEX(ListeCours[],MATCH(SUMPRODUCT((ListeCours[AGENDA]=EmploiDuTemps[[#Headers],[MERCREDI]])*(ROUNDDOWN($B4,10)>=ROUNDDOWN(ListeCours[HEURE DE DÉBUT],10))*($B4<=ListeCours[HEURE DE FIN]),ListeCours[UNIQUE]),ListeCours[UNIQUE],0),2),0)","v":0},{"$f":"IFERROR(INDEX(ListeCours[],MATCH(SUMPRODUCT((ListeCours[AGENDA]=EmploiDuTemps[[#Headers],[JEUDI]])*(ROUNDDOWN($B4,10)>=ROUNDDOWN(ListeCours[HEURE DE DÉBUT],10))*($B4<=ListeCours[HEURE DE FIN]),ListeCours[UNIQUE]),ListeCours[UNIQUE],0),2),0)","v":0},{"$f":"IFERROR(INDEX(ListeCours[],MATCH(SUMPRODUCT((ListeCours[AGENDA]=EmploiDuTemps[[#Headers],[VENDREDI]])*(ROUNDDOWN($B4,10)>=ROUNDDOWN(ListeCours[HEURE DE DÉBUT],10))*($B4<=ListeCours[HEURE DE FIN]),ListeCours[UNIQUE]),ListeCours[UNIQUE],0),2),0)","v":0},{"$f":"IFERROR(INDEX(ListeCours[],MATCH(SUMPRODUCT((ListeCours[AGENDA]=EmploiDuTemps[[#Headers],[SAMEDI]])*(ROUNDDOWN($B4,10)>=ROUNDDOWN(ListeCours[HEURE DE DÉBUT],10))*($B4<=ListeCours[HEURE DE FIN]),ListeCours[UNIQUE]),ListeCours[UNIQUE],0),2),0)","v":0},{"$f":"IFERROR(INDEX(ListeCours[],MATCH(SUMPRODUCT((ListeCours[AGENDA]=EmploiDuTemps[[#Headers],[DIMANCHE]])*(ROUNDDOWN($B4,10)>=ROUNDDOWN(ListeCours[HEURE DE DÉBUT],10))*($B4<=ListeCours[HEURE DE FIN]),ListeCours[UNIQUE]),ListeCours[UNIQUE],0),2),0)","v":0}]
[null,{"$f":"B4+Incrément","v":"07:15:00"},{"$f":"IFERROR(INDEX(ListeCours[],MATCH(SUMPRODUCT((ListeCours[AGENDA]=EmploiDuTemps[[#Headers],[LUNDI]])*(ROUNDDOWN($B5,10)>=ROUNDDOWN(ListeCours[HEURE DE DÉBUT],10))*($B5<=ListeCours[HEURE DE FIN]),ListeCours[UNIQUE]),ListeCours[UNIQUE],0),2),0)","v":0},{"$f":"IFERROR(INDEX(ListeCours[],MATCH(SUMPRODUCT((ListeCours[AGENDA]=EmploiDuTemps[[#Headers],[MARDI]])*(ROUNDDOWN($B5,10)>=ROUNDDOWN(ListeCours[HEURE DE DÉBUT],10))*($B5<=ListeCours[HEURE DE FIN]),ListeCours[UNIQUE]),ListeCours[UNIQUE],0),2),0)","v":0},{"$f":"IFERROR(INDEX(ListeCours[],MATCH(SUMPRODUCT((ListeCours[AGENDA]=EmploiDuTemps[[#Headers],[MERCREDI]])*(ROUNDDOWN($B5,10)>=ROUNDDOWN(ListeCours[HEURE DE DÉBUT],10))*($B5<=ListeCours[HEURE DE FIN]),ListeCours[UNIQUE]),ListeCours[UNIQUE],0),2),0)","v":0},{"$f":"IFERROR(INDEX(ListeCours[],MATCH(SUMPRODUCT((ListeCours[AGENDA]=EmploiDuTemps[[#Headers],[JEUDI]])*(ROUNDDOWN($B5,10)>=ROUNDDOWN(ListeCours[HEURE DE DÉBUT],10))*($B5<=ListeCours[HEURE DE FIN]),ListeCours[UNIQUE]),ListeCours[UNIQUE],0),2),0)","v":0},{"$f":"IFERROR(INDEX(ListeCours[],MATCH(SUMPRODUCT((ListeCours[AGENDA]=EmploiDuTemps[[#Headers],[VENDREDI]])*(ROUNDDOWN($B5,10)>=ROUNDDOWN(ListeCours[HEURE DE DÉBUT],10))*($B5<=ListeCours[HEURE DE FIN]),ListeCours[UNIQUE]),ListeCours[UNIQUE],0),2),0)","v":0},{"$f":"IFERROR(INDEX(ListeCours[],MATCH(SUMPRODUCT((ListeCours[AGENDA]=EmploiDuTemps[[#Headers],[SAMEDI]])*(ROUNDDOWN($B5,10)>=ROUNDDOWN(ListeCours[HEURE DE DÉBUT],10))*($B5<=ListeCours[HEURE DE FIN]),ListeCours[UNIQUE]),ListeCours[UNIQUE],0),2),0)","v":0},{"$f":"IFERROR(INDEX(ListeCours[],MATCH(SUMPRODUCT((ListeCours[AGENDA]=EmploiDuTemps[[#Headers],[DIMANCHE]])*(ROUNDDOWN($B5,10)>=ROUNDDOWN(ListeCours[HEURE DE DÉBUT],10))*($B5<=ListeCours[HEURE DE FIN]),ListeCours[UNIQUE]),ListeCours[UNIQUE],0),2),0)","v":0}]
[null,"07:30:00",{"$f":"IFERROR(INDEX(ListeCours[],MATCH(SUMPRODUCT((ListeCours[AGENDA]=EmploiDuTemps[[#Headers],[LUNDI]])*(ROUNDDOWN($B6,10)>=ROUNDDOWN(ListeCours[HEURE DE DÉBUT],10))*($B6<=ListeCours[HEURE DE FIN]),ListeCours[UNIQUE]),ListeCours[UNIQUE],0),2),0)","v":0},{"$f":"IFERROR(INDEX(ListeCours[],MATCH(SUMPRODUCT((ListeCours[AGENDA]=EmploiDuTemps[[#Headers],[MARDI]])*(ROUNDDOWN($B6,10)>=ROUNDDOWN(ListeCours[HEURE DE DÉBUT],10))*($B6<=ListeCours[HEURE DE FIN]),ListeCours[UNIQUE]),ListeCours[UNIQUE],0),2),0)","v":0},{"$f":"IFERROR(INDEX(ListeCours[],MATCH(SUMPRODUCT((ListeCours[AGENDA]=EmploiDuTemps[[#Headers],[MERCREDI]])*(ROUNDDOWN($B6,10)>=ROUNDDOWN(ListeCours[HEURE DE DÉBUT],10))*($B6<=ListeCours[HEURE DE FIN]),ListeCours[UNIQUE]),ListeCours[UNIQUE],0),2),0)","v":0},{"$f":"IFERROR(INDEX(ListeCours[],MATCH(SUMPRODUCT((ListeCours[AGENDA]=EmploiDuTemps[[#Headers],[JEUDI]])*(ROUNDDOWN($B6,10)>=ROUNDDOWN(ListeCours[HEURE DE DÉBUT],10))*($B6<=ListeCours[HEURE DE FIN]),ListeCours[UNIQUE]),ListeCours[UNIQUE],0),2),0)","v":0},{"$f":"IFERROR(INDEX(ListeCours[],MATCH(SUMPRODUCT((ListeCours[AGENDA]=EmploiDuTemps[[#Headers],[VENDREDI]])*(ROUNDDOWN($B6,10)>=ROUNDDOWN(ListeCours[HEURE DE DÉBUT],10))*($B6<=ListeCours[HEURE DE FIN]),ListeCours[UNIQUE]),ListeCours[UNIQUE],0),2),0)","v":0},{"$f":"IFERROR(INDEX(ListeCours[],MATCH(SUMPRODUCT((ListeCours[AGENDA]=EmploiDuTemps[[#Headers],[SAMEDI]])*(ROUNDDOWN($B6,10)>=ROUNDDOWN(ListeCours[HEURE DE DÉBUT],10))*($B6<=ListeCours[HEURE DE FIN]),ListeCours[UNIQUE]),ListeCours[UNIQUE],0),2),0)","v":0},{"$f":"IFERROR(INDEX(ListeCours[],MATCH(SUMPRODUCT((ListeCours[AGENDA]=EmploiDuTemps[[#Headers],[DIMANCHE]])*(ROUNDDOWN($B6,10)>=ROUNDDOWN(ListeCours[HEURE DE DÉBUT],10))*($B6<=ListeCours[HEURE DE FIN]),ListeCours[UNIQUE]),ListeCours[UNIQUE],0),2),0)","v":0}]
[null,"07:45:00",{"$f":"IFERROR(INDEX(ListeCours[],MATCH(SUMPRODUCT((ListeCours[AGENDA]=EmploiDuTemps[[#Headers],[LUNDI]])*(ROUNDDOWN($B7,10)>=ROUNDDOWN(ListeCours[HEURE DE DÉBUT],10))*($B7<=ListeCours[HEURE DE FIN]),ListeCours[UNIQUE]),ListeCours[UNIQUE],0),2),0)","v":0},{"$f":"IFERROR(INDEX(ListeCours[],MATCH(SUMPRODUCT((ListeCours[AGENDA]=EmploiDuTemps[[#Headers],[MARDI]])*(ROUNDDOWN($B7,10)>=ROUNDDOWN(ListeCours[HEURE DE DÉBUT],10))*($B7<=ListeCours[HEURE DE FIN]),ListeCours[UNIQUE]),ListeCours[UNIQUE],0),2),0)","v":0},{"$f":"IFERROR(INDEX(ListeCours[],MATCH(SUMPRODUCT((ListeCours[AGENDA]=EmploiDuTemps[[#Headers],[MERCREDI]])*(ROUNDDOWN($B7,10)>=ROUNDDOWN(ListeCours[HEURE DE DÉBUT],10))*($B7<=ListeCours[HEURE DE FIN]),ListeCours[UNIQUE]),ListeCours[UNIQUE],0),2),0)","v":0},{"$f":"IFERROR(INDEX(ListeCours[],MATCH(SUMPRODUCT((ListeCours[AGENDA]=EmploiDuTemps[[#Headers],[JEUDI]])*(ROUNDDOWN($B7,10)>=ROUNDDOWN(ListeCours[HEURE DE DÉBUT],10))*($B7<=ListeCours[HEURE DE FIN]),ListeCours[UNIQUE]),ListeCours[UNIQUE],0),2),0)","v":0},{"$f":"IFERROR(INDEX(ListeCours[],MATCH(SUMPRODUCT((ListeCours[AGENDA]=EmploiDuTemps[[#Headers],[VENDREDI]])*(ROUNDDOWN($B7,10)>=ROUNDDOWN(ListeCours[HEURE DE DÉBUT],10))*($B7<=ListeCours[HEURE DE FIN]),ListeCours[UNIQUE]),ListeCours[UNIQUE],0),2),0)","v":0},{"$f":"IFERROR(INDEX(ListeCours[],MATCH(SUMPRODUCT((ListeCours[AGENDA]=EmploiDuTemps[[#Headers],[SAMEDI]])*(ROUNDDOWN($B7,10)>=ROUNDDOWN(ListeCours[HEURE DE DÉBUT],10))*($B7<=ListeCours[HEURE DE FIN]),ListeCours[UNIQUE]),ListeCours[UNIQUE],0),2),0)","v":0},{"$f":"IFERROR(INDEX(ListeCours[],MATCH(SUMPRODUCT((ListeCours[AGENDA]=EmploiDuTemps[[#Headers],[DIMANCHE]])*(ROUNDDOWN($B7,10)>=ROUNDDOWN(ListeCours[HEURE DE DÉBUT],10))*($B7<=ListeCours[HEURE DE FIN]),ListeCours[UNIQUE]),ListeCours[UNIQUE],0),2),0)","v":0}]
[null,"08:00:00",{"$f":"IFERROR(INDEX(ListeCours[],MATCH(SUMPRODUCT((ListeCours[AGENDA]=EmploiDuTemps[[#Headers],[LUNDI]])*(ROUNDDOWN($B8,10)>=ROUNDDOWN(ListeCours[HEURE DE DÉBUT],10))*($B8<=ListeCours[HEURE DE FIN]),ListeCours[UNIQUE]),ListeCours[UNIQUE],0),2),0)","v":0},{"$f":"IFERROR(INDEX(ListeCours[],MATCH(SUMPRODUCT((ListeCours[AGENDA]=EmploiDuTemps[[#Headers],[MARDI]])*(ROUNDDOWN($B8,10)>=ROUNDDOWN(ListeCours[HEURE DE DÉBUT],10))*($B8<=ListeCours[HEURE DE FIN]),ListeCours[UNIQUE]),ListeCours[UNIQUE],0),2),0)","v":"MTH-113"},{"$f":"IFERROR(INDEX(ListeCours[],MATCH(SUMPRODUCT((ListeCours[AGENDA]=EmploiDuTemps[[#Headers],[MERCREDI]])*(ROUNDDOWN($B8,10)>=ROUNDDOWN(ListeCours[HEURE DE DÉBUT],10))*($B8<=ListeCours[HEURE DE FIN]),ListeCours[UNIQUE]),ListeCours[UNIQUE],0),2),0)","v":0},{"$f":"IFERROR(INDEX(ListeCours[],MATCH(SUMPRODUCT((ListeCours[AGENDA]=EmploiDuTemps[[#Headers],[JEUDI]])*(ROUNDDOWN($B8,10)>=ROUNDDOWN(ListeCours[HEURE DE DÉBUT],10))*($B8<=ListeCours[HEURE DE FIN]),ListeCours[UNIQUE]),ListeCours[UNIQUE],0),2),0)","v":0},{"$f":"IFERROR(INDEX(ListeCours[],MATCH(SUMPRODUCT((ListeCours[AGENDA]=EmploiDuTemps[[#Headers],[VENDREDI]])*(ROUNDDOWN($B8,10)>=ROUNDDOWN(ListeCours[HEURE DE DÉBUT],10))*($B8<=ListeCours[HEURE DE FIN]),ListeCours[UNIQUE]),ListeCours[UNIQUE],0),2),0)","v":0},{"$f":"IFERROR(INDEX(ListeCours[],MATCH(SUMPRODUCT((ListeCours[AGENDA]=EmploiDuTemps[[#Headers],[SAMEDI]])*(ROUNDDOWN($B8,10)>=ROUNDDOWN(ListeCours[HEURE DE DÉBUT],10))*($B8<=ListeCours[HEURE DE FIN]),ListeCours[UNIQUE]),ListeCours[UNIQUE],0),2),0)","v":0},{"$f":"IFERROR(INDEX(ListeCours[],MATCH(SUMPRODUCT((ListeCours[AGENDA]=EmploiDuTemps[[#Headers],[DIMANCHE]])*(ROUNDDOWN($B8,10)>=ROUNDDOWN(ListeCours[HEURE DE DÉBUT],10))*($B8<=ListeCours[HEURE DE FIN]),ListeCours[UNIQUE]),ListeCours[UNIQUE],0),2),0)","v":0}]
[null,"08:15:00",{"$f":"IFERROR(INDEX(ListeCours[],MATCH(SUMPRODUCT((ListeCours[AGENDA]=EmploiDuTemps[[#Headers],[LUNDI]])*(ROUNDDOWN($B9,10)>=ROUNDDOWN(ListeCours[HEURE DE DÉBUT],10))*($B9<=ListeCours[HEURE DE FIN]),ListeCours[UNIQUE]),ListeCours[UNIQUE],0),2),0)","v":0},{"$f":"IFERROR(INDEX(ListeCours[],MATCH(SUMPRODUCT((ListeCours[AGENDA]=EmploiDuTemps[[#Headers],[MARDI]])*(ROUNDDOWN($B9,10)>=ROUNDDOWN(ListeCours[HEURE DE DÉBUT],10))*($B9<=ListeCours[HEURE DE FIN]),ListeCours[UNIQUE]),ListeCours[UNIQUE],0),2),0)","v":"MTH-113"},{"$f":"IFERROR(INDEX(ListeCours[],MATCH(SUMPRODUCT((ListeCours[AGENDA]=EmploiDuTemps[[#Headers],[MERCREDI]])*(ROUNDDOWN($B9,10)>=ROUNDDOWN(ListeCours[HEURE DE DÉBUT],10))*($B9<=ListeCours[HEURE DE FIN]),ListeCours[UNIQUE]),ListeCours[UNIQUE],0),2),0)","v":0},{"$f":"IFERROR(INDEX(ListeCours[],MATCH(SUMPRODUCT((ListeCours[AGENDA]=EmploiDuTemps[[#Headers],[JEUDI]])*(ROUNDDOWN($B9,10)>=ROUNDDOWN(ListeCours[HEURE DE DÉBUT],10))*($B9<=ListeCours[HEURE DE FIN]),ListeCours[UNIQUE]),ListeCours[UNIQUE],0),2),0)","v":0},{"$f":"IFERROR(INDEX(ListeCours[],MATCH(SUMPRODUCT((ListeCours[AGENDA]=EmploiDuTemps[[#Headers],[VENDREDI]])*(ROUNDDOWN($B9,10)>=ROUNDDOWN(ListeCours[HEURE DE DÉBUT],10))*($B9<=ListeCours[HEURE DE FIN]),ListeCours[UNIQUE]),ListeCours[UNIQUE],0),2),0)","v":"PHL-113"},{"$f":"IFERROR(INDEX(ListeCours[],MATCH(SUMPRODUCT((ListeCours[AGENDA]=EmploiDuTemps[[#Headers],[SAMEDI]])*(ROUNDDOWN($B9,10)>=ROUNDDOWN(ListeCours[HEURE DE DÉBUT],10))*($B9<=ListeCours[HEURE DE FIN]),ListeCours[UNIQUE]),ListeCours[UNIQUE],0),2),0)","v":"ALM-113"},{"$f":"IFERROR(INDEX(ListeCours[],MATCH(SUMPRODUCT((ListeCours[AGENDA]=EmploiDuTemps[[#Headers],[DIMANCHE]])*(ROUNDDOWN($B9,10)>=ROUNDDOWN(ListeCours[HEURE DE DÉBUT],10))*($B9<=ListeCours[HEURE DE FIN]),ListeCours[UNIQUE]),ListeCours[UNIQUE],0),2),0)","v":0}]
[null,"08:30:00",{"$f":"IFERROR(INDEX(ListeCours[],MATCH(SUMPRODUCT((ListeCours[AGENDA]=EmploiDuTemps[[#Headers],[LUNDI]])*(ROUNDDOWN($B10,10)>=ROUNDDOWN(ListeCours[HEURE DE DÉBUT],10))*($B10<=ListeCours[HEURE DE FIN]),ListeCours[UNIQUE]),ListeCours[UNIQUE],0),2),0)","v":0},{"$f":"IFERROR(INDEX(ListeCours[],MATCH(SUMPRODUCT((ListeCours[AGENDA]=EmploiDuTemps[[#Headers],[MARDI]])*(ROUNDDOWN($B10,10)>=ROUNDDOWN(ListeCours[HEURE DE DÉBUT],10))*($B10<=ListeCours[HEURE DE FIN]),ListeCours[UNIQUE]),ListeCours[UNIQUE],0),2),0)","v":"MTH-113"},{"$f":"IFERROR(INDEX(ListeCours[],MATCH(SUMPRODUCT((ListeCours[AGENDA]=EmploiDuTemps[[#Headers],[MERCREDI]])*(ROUNDDOWN($B10,10)>=ROUNDDOWN(ListeCours[HEURE DE DÉBUT],10))*($B10<=ListeCours[HEURE DE FIN]),ListeCours[UNIQUE]),ListeCours[UNIQUE],0),2),0)","v":0},{"$f":"IFERROR(INDEX(ListeCours[],MATCH(SUMPRODUCT((ListeCours[AGENDA]=EmploiDuTemps[[#Headers],[JEUDI]])*(ROUNDDOWN($B10,10)>=ROUNDDOWN(ListeCours[HEURE DE DÉBUT],10))*($B10<=ListeCours[HEURE DE FIN]),ListeCours[UNIQUE]),ListeCours[UNIQUE],0),2),0)","v":0},{"$f":"IFERROR(INDEX(ListeCours[],MATCH(SUMPRODUCT((ListeCours[AGENDA]=EmploiDuTemps[[#Headers],[VENDREDI]])*(ROUNDDOWN($B10,10)>=ROUNDDOWN(ListeCours[HEURE DE DÉBUT],10))*($B10<=ListeCours[HEURE DE FIN]),ListeCours[UNIQUE]),ListeCours[UNIQUE],0),2),0)","v":"PHL-113"},{"$f":"IFERROR(INDEX(ListeCours[],MATCH(SUMPRODUCT((ListeCours[AGENDA]=EmploiDuTemps[[#Headers],[SAMEDI]])*(ROUNDDOWN($B10,10)>=ROUNDDOWN(ListeCours[HEURE DE DÉBUT],10))*($B10<=ListeCours[HEURE DE FIN]),ListeCours[UNIQUE]),ListeCours[UNIQUE],0),2),0)","v":"ALM-113"},{"$f":"IFERROR(INDEX(ListeCours[],MATCH(SUMPRODUCT((ListeCours[AGENDA]=EmploiDuTemps[[#Headers],[DIMANCHE]])*(ROUNDDOWN($B10,10)>=ROUNDDOWN(ListeCours[HEURE DE DÉBUT],10))*($B10<=ListeCours[HEURE DE FIN]),ListeCours[UNIQUE]),ListeCours[UNIQUE],0),2),0)","v":0}]
[null,"08:45:00",{"$f":"IFERROR(INDEX(ListeCours[],MATCH(SUMPRODUCT((ListeCours[AGENDA]=EmploiDuTemps[[#Headers],[LUNDI]])*(ROUNDDOWN($B11,10)>=ROUNDDOWN(ListeCours[HEURE DE DÉBUT],10))*($B11<=ListeCours[HEURE DE FIN]),ListeCours[UNIQUE]),ListeCours[UNIQUE],0),2),0)","v":0},{"$f":"IFERROR(INDEX(ListeCours[],MATCH(SUMPRODUCT((ListeCours[AGENDA]=EmploiDuTemps[[#Headers],[MARDI]])*(ROUNDDOWN($B11,10)>=ROUNDDOWN(ListeCours[HEURE DE DÉBUT],10))*($B11<=ListeCours[HEURE DE FIN]),ListeCours[UNIQUE]),ListeCours[UNIQUE],0),2),0)","v":"MTH-113"},{"$f":"IFERROR(INDEX(ListeCours[],MATCH(SUMPRODUCT((ListeCours[AGENDA]=EmploiDuTemps[[#Headers],[MERCREDI]])*(ROUNDDOWN($B11,10)>=ROUNDDOWN(ListeCours[HEURE DE DÉBUT],10))*($B11<=ListeCours[HEURE DE FIN]),ListeCours[UNIQUE]),ListeCours[UNIQUE],0),2),0)","v":0},{"$f":"IFERROR(INDEX(ListeCours[],MATCH(SUMPRODUCT((ListeCours[AGENDA]=EmploiDuTemps[[#Headers],[JEUDI]])*(ROUNDDOWN($B11,10)>=ROUNDDOWN(ListeCours[HEURE DE DÉBUT],10))*($B11<=ListeCours[HEURE DE FIN]),ListeCours[UNIQUE]),ListeCours[UNIQUE],0),2),0)","v":0},{"$f":"IFERROR(INDEX(ListeCours[],MATCH(SUMPRODUCT((ListeCours[AGENDA]=EmploiDuTemps[[#Headers],[VENDREDI]])*(ROUNDDOWN($B11,10)>=ROUNDDOWN(ListeCours[HEURE DE DÉBUT],10))*($B11<=ListeCours[HEURE DE FIN]),ListeCours[UNIQUE]),ListeCours[UNIQUE],0),2),0)","v":"PHL-113"},{"$f":"IFERROR(INDEX(ListeCours[],MATCH(SUMPRODUCT((ListeCours[AGENDA]=EmploiDuTemps[[#Headers],[SAMEDI]])*(ROUNDDOWN($B11,10)>=ROUNDDOWN(ListeCours[HEURE DE DÉBUT],10))*($B11<=ListeCours[HEURE DE FIN]),ListeCours[UNIQUE]),ListeCours[UNIQUE],0),2),0)","v":"ALM-113"},{"$f":"IFERROR(INDEX(ListeCours[],MATCH(SUMPRODUCT((ListeCours[AGENDA]=EmploiDuTemps[[#Headers],[DIMANCHE]])*(ROUNDDOWN($B11,10)>=ROUNDDOWN(ListeCours[HEURE DE DÉBUT],10))*($B11<=ListeCours[HEURE DE FIN]),ListeCours[UNIQUE]),ListeCours[UNIQUE],0),2),0)","v":0}]
[null,"09:00:00",{"$f":"IFERROR(INDEX(ListeCours[],MATCH(SUMPRODUCT((ListeCours[AGENDA]=EmploiDuTemps[[#Headers],[LUNDI]])*(ROUNDDOWN($B12,10)>=ROUNDDOWN(ListeCours[HEURE DE DÉBUT],10))*($B12<=ListeCours[HEURE DE FIN]),ListeCours[UNIQUE]),ListeCours[UNIQUE],0),2),0)","v":0},{"$f":"IFERROR(INDEX(ListeCours[],MATCH(SUMPRODUCT((ListeCours[AGENDA]=EmploiDuTemps[[#Headers],[MARDI]])*(ROUNDDOWN($B12,10)>=ROUNDDOWN(ListeCours[HEURE DE DÉBUT],10))*($B12<=ListeCours[HEURE DE FIN]),ListeCours[UNIQUE]),ListeCours[UNIQUE],0),2),0)","v":"MTH-113"},{"$f":"IFERROR(INDEX(ListeCours[],MATCH(SUMPRODUCT((ListeCours[AGENDA]=EmploiDuTemps[[#Headers],[MERCREDI]])*(ROUNDDOWN($B12,10)>=ROUNDDOWN(ListeCours[HEURE DE DÉBUT],10))*($B12<=ListeCours[HEURE DE FIN]),ListeCours[UNIQUE]),ListeCours[UNIQUE],0),2),0)","v":0},{"$f":"IFERROR(INDEX(ListeCours[],MATCH(SUMPRODUCT((ListeCours[AGENDA]=EmploiDuTemps[[#Headers],[JEUDI]])*(ROUNDDOWN($B12,10)>=ROUNDDOWN(ListeCours[HEURE DE DÉBUT],10))*($B12<=ListeCours[HEURE DE FIN]),ListeCours[UNIQUE]),ListeCours[UNIQUE],0),2),0)","v":0},{"$f":"IFERROR(INDEX(ListeCours[],MATCH(SUMPRODUCT((ListeCours[AGENDA]=EmploiDuTemps[[#Headers],[VENDREDI]])*(ROUNDDOWN($B12,10)>=ROUNDDOWN(ListeCours[HEURE DE DÉBUT],10))*($B12<=ListeCours[HEURE DE FIN]),ListeCours[UNIQUE]),ListeCours[UNIQUE],0),2),0)","v":"PHL-113"},{"$f":"IFERROR(INDEX(ListeCours[],MATCH(SUMPRODUCT((ListeCours[AGENDA]=EmploiDuTemps[[#Headers],[SAMEDI]])*(ROUNDDOWN($B12,10)>=ROUNDDOWN(ListeCours[HEURE DE DÉBUT],10))*($B12<=ListeCours[HEURE DE FIN]),ListeCours[UNIQUE]),ListeCours[UNIQUE],0),2),0)","v":"ALM-113"},{"$f":"IFERROR(INDEX(ListeCours[],MATCH(SUMPRODUCT((ListeCours[AGENDA]=EmploiDuTemps[[#Headers],[DIMANCHE]])*(ROUNDDOWN($B12,10)>=ROUNDDOWN(ListeCours[HEURE DE DÉBUT],10))*($B12<=ListeCours[HEURE DE FIN]),ListeCours[UNIQUE]),ListeCours[UNIQUE],0),2),0)","v":0}]
[null,"09:15:00",{"$f":"IFERROR(INDEX(ListeCours[],MATCH(SUMPRODUCT((ListeCours[AGENDA]=EmploiDuTemps[[#Headers],[LUNDI]])*(ROUNDDOWN($B13,10)>=ROUNDDOWN(ListeCours[HEURE DE DÉBUT],10))*($B13<=ListeCours[HEURE DE FIN]),ListeCours[UNIQUE]),ListeCours[UNIQUE],0),2),0)","v":0},{"$f":"IFERROR(INDEX(ListeCours[],MATCH(SUMPRODUCT((ListeCours[AGENDA]=EmploiDuTemps[[#Headers],[MARDI]])*(ROUNDDOWN($B13,10)>=ROUNDDOWN(ListeCours[HEURE DE DÉBUT],10))*($B13<=ListeCours[HEURE DE FIN]),ListeCours[UNIQUE]),ListeCours[UNIQUE],0),2),0)","v":"MTH-113"},{"$f":"IFERROR(INDEX(ListeCours[],MATCH(SUMPRODUCT((ListeCours[AGENDA]=EmploiDuTemps[[#Headers],[MERCREDI]])*(ROUNDDOWN($B13,10)>=ROUNDDOWN(ListeCours[HEURE DE DÉBUT],10))*($B13<=ListeCours[HEURE DE FIN]),ListeCours[UNIQUE]),ListeCours[UNIQUE],0),2),0)","v":0},{"$f":"IFERROR(INDEX(ListeCours[],MATCH(SUMPRODUCT((ListeCours[AGENDA]=EmploiDuTemps[[#Headers],[JEUDI]])*(ROUNDDOWN($B13,10)>=ROUNDDOWN(ListeCours[HEURE DE DÉBUT],10))*($B13<=ListeCours[HEURE DE FIN]),ListeCours[UNIQUE]),ListeCours[UNIQUE],0),2),0)","v":0},{"$f":"IFERROR(INDEX(ListeCours[],MATCH(SUMPRODUCT((ListeCours[AGENDA]=EmploiDuTemps[[#Headers],[VENDREDI]])*(ROUNDDOWN($B13,10)>=ROUNDDOWN(ListeCours[HEURE DE DÉBUT],10))*($B13<=ListeCours[HEURE DE FIN]),ListeCours[UNIQUE]),ListeCours[UNIQUE],0),2),0)","v":"PHL-113"},{"$f":"IFERROR(INDEX(ListeCours[],MATCH(SUMPRODUCT((ListeCours[AGENDA]=EmploiDuTemps[[#Headers],[SAMEDI]])*(ROUNDDOWN($B13,10)>=ROUNDDOWN(ListeCours[HEURE DE DÉBUT],10))*($B13<=ListeCours[HEURE DE FIN]),ListeCours[UNIQUE]),ListeCours[UNIQUE],0),2),0)","v":"ALM-113"},{"$f":"IFERROR(INDEX(ListeCours[],MATCH(SUMPRODUCT((ListeCours[AGENDA]=EmploiDuTemps[[#Headers],[DIMANCHE]])*(ROUNDDOWN($B13,10)>=ROUNDDOWN(ListeCours[HEURE DE DÉBUT],10))*($B13<=ListeCours[HEURE DE FIN]),ListeCours[UNIQUE]),ListeCours[UNIQUE],0),2),0)","v":0}]
[null,"09:30:00",{"$f":"IFERROR(INDEX(ListeCours[],MATCH(SUMPRODUCT((ListeCours[AGENDA]=EmploiDuTemps[[#Headers],[LUNDI]])*(ROUNDDOWN($B14,10)>=ROUNDDOWN(ListeCours[HEURE DE DÉBUT],10))*($B14<=ListeCours[HEURE DE FIN]),ListeCours[UNIQUE]),ListeCours[UNIQUE],0),2),0)","v":0},{"$f":"IFERROR(INDEX(ListeCours[],MATCH(SUMPRODUCT((ListeCours[AGENDA]=EmploiDuTemps[[#Headers],[MARDI]])*(ROUNDDOWN($B14,10)>=ROUNDDOWN(ListeCours[HEURE DE DÉBUT],10))*($B14<=ListeCours[HEURE DE FIN]),ListeCours[UNIQUE]),ListeCours[UNIQUE],0),2),0)","v":0},{"$f":"IFERROR(INDEX(ListeCours[],MATCH(SUMPRODUCT((ListeCours[AGENDA]=EmploiDuTemps[[#Headers],[MERCREDI]])*(ROUNDDOWN($B14,10)>=ROUNDDOWN(ListeCours[HEURE DE DÉBUT],10))*($B14<=ListeCours[HEURE DE FIN]),ListeCours[UNIQUE]),ListeCours[UNIQUE],0),2),0)","v":0},{"$f":"IFERROR(INDEX(ListeCours[],MATCH(SUMPRODUCT((ListeCours[AGENDA]=EmploiDuTemps[[#Headers],[JEUDI]])*(ROUNDDOWN($B14,10)>=ROUNDDOWN(ListeCours[HEURE DE DÉBUT],10))*($B14<=ListeCours[HEURE DE FIN]),ListeCours[UNIQUE]),ListeCours[UNIQUE],0),2),0)","v":0},{"$f":"IFERROR(INDEX(ListeCours[],MATCH(SUMPRODUCT((ListeCours[AGENDA]=EmploiDuTemps[[#Headers],[VENDREDI]])*(ROUNDDOWN($B14,10)>=ROUNDDOWN(ListeCours[HEURE DE DÉBUT],10))*($B14<=ListeCours[HEURE DE FIN]),ListeCours[UNIQUE]),ListeCours[UNIQUE],0),2),0)","v":0},{"$f":"IFERROR(INDEX(ListeCours[],MATCH(SUMPRODUCT((ListeCours[AGENDA]=EmploiDuTemps[[#Headers],[SAMEDI]])*(ROUNDDOWN($B14,10)>=ROUNDDOWN(ListeCours[HEURE DE DÉBUT],10))*($B14<=ListeCours[HEURE DE FIN]),ListeCours[UNIQUE]),ListeCours[UNIQUE],0),2),0)","v":0},{"$f":"IFERROR(INDEX(ListeCours[],MATCH(SUMPRODUCT((ListeCours[AGENDA]=EmploiDuTemps[[#Headers],[DIMANCHE]])*(ROUNDDOWN($B14,10)>=ROUNDDOWN(ListeCours[HEURE DE DÉBUT],10))*($B14<=ListeCours[HEURE DE FIN]),ListeCours[UNIQUE]),ListeCours[UNIQUE],0),2),0)","v":0}]
[null,"09:45:00",{"$f":"IFERROR(INDEX(ListeCours[],MATCH(SUMPRODUCT((ListeCours[AGENDA]=EmploiDuTemps[[#Headers],[LUNDI]])*(ROUNDDOWN($B15,10)>=ROUNDDOWN(ListeCours[HEURE DE DÉBUT],10))*($B15<=ListeCours[HEURE DE FIN]),ListeCours[UNIQUE]),ListeCours[UNIQUE],0),2),0)","v":0},{"$f":"IFERROR(INDEX(ListeCours[],MATCH(SUMPRODUCT((ListeCours[AGENDA]=EmploiDuTemps[[#Headers],[MARDI]])*(ROUNDDOWN($B15,10)>=ROUNDDOWN(ListeCours[HEURE DE DÉBUT],10))*($B15<=ListeCours[HEURE DE FIN]),ListeCours[UNIQUE]),ListeCours[UNIQUE],0),2),0)","v":0},{"$f":"IFERROR(INDEX(ListeCours[],MATCH(SUMPRODUCT((ListeCours[AGENDA]=EmploiDuTemps[[#Headers],[MERCREDI]])*(ROUNDDOWN($B15,10)>=ROUNDDOWN(ListeCours[HEURE DE DÉBUT],10))*($B15<=ListeCours[HEURE DE FIN]),ListeCours[UNIQUE]),ListeCours[UNIQUE],0),2),0)","v":0},{"$f":"IFERROR(INDEX(ListeCours[],MATCH(SUMPRODUCT((ListeCours[AGENDA]=EmploiDuTemps[[#Headers],[JEUDI]])*(ROUNDDOWN($B15,10)>=ROUNDDOWN(ListeCours[HEURE DE DÉBUT],10))*($B15<=ListeCours[HEURE DE FIN]),ListeCours[UNIQUE]),ListeCours[UNIQUE],0),2),0)","v":0},{"$f":"IFERROR(INDEX(ListeCours[],MATCH(SUMPRODUCT((ListeCours[AGENDA]=EmploiDuTemps[[#Headers],[VENDREDI]])*(ROUNDDOWN($B15,10)>=ROUNDDOWN(ListeCours[HEURE DE DÉBUT],10))*($B15<=ListeCours[HEURE DE FIN]),ListeCours[UNIQUE]),ListeCours[UNIQUE],0),2),0)","v":0},{"$f":"IFERROR(INDEX(ListeCours[],MATCH(SUMPRODUCT((ListeCours[AGENDA]=EmploiDuTemps[[#Headers],[SAMEDI]])*(ROUNDDOWN($B15,10)>=ROUNDDOWN(ListeCours[HEURE DE DÉBUT],10))*($B15<=ListeCours[HEURE DE FIN]),ListeCours[UNIQUE]),ListeCours[UNIQUE],0),2),0)","v":0},{"$f":"IFERROR(INDEX(ListeCours[],MATCH(SUMPRODUCT((ListeCours[AGENDA]=EmploiDuTemps[[#Headers],[DIMANCHE]])*(ROUNDDOWN($B15,10)>=ROUNDDOWN(ListeCours[HEURE DE DÉBUT],10))*($B15<=ListeCours[HEURE DE FIN]),ListeCours[UNIQUE]),ListeCours[UNIQUE],0),2),0)","v":0}]
[null,"10:00:00",{"$f":"IFERROR(INDEX(ListeCours[],MATCH(SUMPRODUCT((ListeCours[AGENDA]=EmploiDuTemps[[#Headers],[LUNDI]])*(ROUNDDOWN($B16,10)>=ROUNDDOWN(ListeCours[HEURE DE DÉBUT],10))*($B16<=ListeCours[HEURE DE FIN]),ListeCours[UNIQUE]),ListeCours[UNIQUE],0),2),0)","v":0},{"$f":"IFERROR(INDEX(ListeCours[],MATCH(SUMPRODUCT((ListeCours[AGENDA]=EmploiDuTemps[[#Headers],[MARDI]])*(ROUNDDOWN($B16,10)>=ROUNDDOWN(ListeCours[HEURE DE DÉBUT],10))*($B16<=ListeCours[HEURE DE FIN]),ListeCours[UNIQUE]),ListeCours[UNIQUE],0),2),0)","v":0},{"$f":"IFERROR(INDEX(ListeCours[],MATCH(SUMPRODUCT((ListeCours[AGENDA]=EmploiDuTemps[[#Headers],[MERCREDI]])*(ROUNDDOWN($B16,10)>=ROUNDDOWN(ListeCours[HEURE DE DÉBUT],10))*($B16<=ListeCours[HEURE DE FIN]),ListeCours[UNIQUE]),ListeCours[UNIQUE],0),2),0)","v":0},{"$f":"IFERROR(INDEX(ListeCours[],MATCH(SUMPRODUCT((ListeCours[AGENDA]=EmploiDuTemps[[#Headers],[JEUDI]])*(ROUNDDOWN($B16,10)>=ROUNDDOWN(ListeCours[HEURE DE DÉBUT],10))*($B16<=ListeCours[HEURE DE FIN]),ListeCours[UNIQUE]),ListeCours[UNIQUE],0),2),0)","v":0},{"$f":"IFERROR(INDEX(ListeCours[],MATCH(SUMPRODUCT((ListeCours[AGENDA]=EmploiDuTemps[[#Headers],[VENDREDI]])*(ROUNDDOWN($B16,10)>=ROUNDDOWN(ListeCours[HEURE DE DÉBUT],10))*($B16<=ListeCours[HEURE DE FIN]),ListeCours[UNIQUE]),ListeCours[UNIQUE],0),2),0)","v":0},{"$f":"IFERROR(INDEX(ListeCours[],MATCH(SUMPRODUCT((ListeCours[AGENDA]=EmploiDuTemps[[#Headers],[SAMEDI]])*(ROUNDDOWN($B16,10)>=ROUNDDOWN(ListeCours[HEURE DE DÉBUT],10))*($B16<=ListeCours[HEURE DE FIN]),ListeCours[UNIQUE]),ListeCours[UNIQUE],0),2),0)","v":0},{"$f":"IFERROR(INDEX(ListeCours[],MATCH(SUMPRODUCT((ListeCours[AGENDA]=EmploiDuTemps[[#Headers],[DIMANCHE]])*(ROUNDDOWN($B16,10)>=ROUNDDOWN(ListeCours[HEURE DE DÉBUT],10))*($B16<=ListeCours[HEURE DE FIN]),ListeCours[UNIQUE]),ListeCours[UNIQUE],0),2),0)","v":0}]
[null,"10:15:00",{"$f":"IFERROR(INDEX(ListeCours[],MATCH(SUMPRODUCT((ListeCours[AGENDA]=EmploiDuTemps[[#Headers],[LUNDI]])*(ROUNDDOWN($B17,10)>=ROUNDDOWN(ListeCours[HEURE DE DÉBUT],10))*($B17<=ListeCours[HEURE DE FIN]),ListeCours[UNIQUE]),ListeCours[UNIQUE],0),2),0)","v":0},{"$f":"IFERROR(INDEX(ListeCours[],MATCH(SUMPRODUCT((ListeCours[AGENDA]=EmploiDuTemps[[#Headers],[MARDI]])*(ROUNDDOWN($B17,10)>=ROUNDDOWN(ListeCours[HEURE DE DÉBUT],10))*($B17<=ListeCours[HEURE DE FIN]),ListeCours[UNIQUE]),ListeCours[UNIQUE],0),2),0)","v":0},{"$f":"IFERROR(INDEX(ListeCours[],MATCH(SUMPRODUCT((ListeCours[AGENDA]=EmploiDuTemps[[#Headers],[MERCREDI]])*(ROUNDDOWN($B17,10)>=ROUNDDOWN(ListeCours[HEURE DE DÉBUT],10))*($B17<=ListeCours[HEURE DE FIN]),ListeCours[UNIQUE]),ListeCours[UNIQUE],0),2),0)","v":0},{"$f":"IFERROR(INDEX(ListeCours[],MATCH(SUMPRODUCT((ListeCours[AGENDA]=EmploiDuTemps[[#Headers],[JEUDI]])*(ROUNDDOWN($B17,10)>=ROUNDDOWN(ListeCours[HEURE DE DÉBUT],10))*($B17<=ListeCours[HEURE DE FIN]),ListeCours[UNIQUE]),ListeCours[UNIQUE],0),2),0)","v":0},{"$f":"IFERROR(INDEX(ListeCours[],MATCH(SUMPRODUCT((ListeCours[AGENDA]=EmploiDuTemps[[#Headers],[VENDREDI]])*(ROUNDDOWN($B17,10)>=ROUNDDOWN(ListeCours[HEURE DE DÉBUT],10))*($B17<=ListeCours[HEURE DE FIN]),ListeCours[UNIQUE]),ListeCours[UNIQUE],0),2),0)","v":0},{"$f":"IFERROR(INDEX(ListeCours[],MATCH(SUMPRODUCT((ListeCours[AGENDA]=EmploiDuTemps[[#Headers],[SAMEDI]])*(ROUNDDOWN($B17,10)>=ROUNDDOWN(ListeCours[HEURE DE DÉBUT],10))*($B17<=ListeCours[HEURE DE FIN]),ListeCours[UNIQUE]),ListeCours[UNIQUE],0),2),0)","v":0},{"$f":"IFERROR(INDEX(ListeCours[],MATCH(SUMPRODUCT((ListeCours[AGENDA]=EmploiDuTemps[[#Headers],[DIMANCHE]])*(ROUNDDOWN($B17,10)>=ROUNDDOWN(ListeCours[HEURE DE DÉBUT],10))*($B17<=ListeCours[HEURE DE FIN]),ListeCours[UNIQUE]),ListeCours[UNIQUE],0),2),0)","v":"ESP-001"}]
[null,"10:30:00",{"$f":"IFERROR(INDEX(ListeCours[],MATCH(SUMPRODUCT((ListeCours[AGENDA]=EmploiDuTemps[[#Headers],[LUNDI]])*(ROUNDDOWN($B18,10)>=ROUNDDOWN(ListeCours[HEURE DE DÉBUT],10))*($B18<=ListeCours[HEURE DE FIN]),ListeCours[UNIQUE]),ListeCours[UNIQUE],0),2),0)","v":0},{"$f":"IFERROR(INDEX(ListeCours[],MATCH(SUMPRODUCT((ListeCours[AGENDA]=EmploiDuTemps[[#Headers],[MARDI]])*(ROUNDDOWN($B18,10)>=ROUNDDOWN(ListeCours[HEURE DE DÉBUT],10))*($B18<=ListeCours[HEURE DE FIN]),ListeCours[UNIQUE]),ListeCours[UNIQUE],0),2),0)","v":0},{"$f":"IFERROR(INDEX(ListeCours[],MATCH(SUMPRODUCT((ListeCours[AGENDA]=EmploiDuTemps[[#Headers],[MERCREDI]])*(ROUNDDOWN($B18,10)>=ROUNDDOWN(ListeCours[HEURE DE DÉBUT],10))*($B18<=ListeCours[HEURE DE FIN]),ListeCours[UNIQUE]),ListeCours[UNIQUE],0),2),0)","v":0},{"$f":"IFERROR(INDEX(ListeCours[],MATCH(SUMPRODUCT((ListeCours[AGENDA]=EmploiDuTemps[[#Headers],[JEUDI]])*(ROUNDDOWN($B18,10)>=ROUNDDOWN(ListeCours[HEURE DE DÉBUT],10))*($B18<=ListeCours[HEURE DE FIN]),ListeCours[UNIQUE]),ListeCours[UNIQUE],0),2),0)","v":0},{"$f":"IFERROR(INDEX(ListeCours[],MATCH(SUMPRODUCT((ListeCours[AGENDA]=EmploiDuTemps[[#Headers],[VENDREDI]])*(ROUNDDOWN($B18,10)>=ROUNDDOWN(ListeCours[HEURE DE DÉBUT],10))*($B18<=ListeCours[HEURE DE FIN]),ListeCours[UNIQUE]),ListeCours[UNIQUE],0),2),0)","v":0},{"$f":"IFERROR(INDEX(ListeCours[],MATCH(SUMPRODUCT((ListeCours[AGENDA]=EmploiDuTemps[[#Headers],[SAMEDI]])*(ROUNDDOWN($B18,10)>=ROUNDDOWN(ListeCours[HEURE DE DÉBUT],10))*($B18<=ListeCours[HEURE DE FIN]),ListeCours[UNIQUE]),ListeCours[UNIQUE],0),2),0)","v":0},{"$f":"IFERROR(INDEX(ListeCours[],MATCH(SUMPRODUCT((ListeCours[AGENDA]=EmploiDuTemps[[#Headers],[DIMANCHE]])*(ROUNDDOWN($B18,10)>=ROUNDDOWN(ListeCours[HEURE DE DÉBUT],10))*($B18<=ListeCours[HEURE DE FIN]),ListeCours[UNIQUE]),ListeCours[UNIQUE],0),2),0)","v":"ESP-001"}]
[null,"10:45:00",{"$f":"IFERROR(INDEX(ListeCours[],MATCH(SUMPRODUCT((ListeCours[AGENDA]=EmploiDuTemps[[#Headers],[LUNDI]])*(ROUNDDOWN($B19,10)>=ROUNDDOWN(ListeCours[HEURE DE DÉBUT],10))*($B19<=ListeCours[HEURE DE FIN]),ListeCours[UNIQUE]),ListeCours[UNIQUE],0),2),0)","v":0},{"$f":"IFERROR(INDEX(ListeCours[],MATCH(SUMPRODUCT((ListeCours[AGENDA]=EmploiDuTemps[[#Headers],[MARDI]])*(ROUNDDOWN($B19,10)>=ROUNDDOWN(ListeCours[HEURE DE DÉBUT],10))*($B19<=ListeCours[HEURE DE FIN]),ListeCours[UNIQUE]),ListeCours[UNIQUE],0),2),0)","v":0},{"$f":"IFERROR(INDEX(ListeCours[],MATCH(SUMPRODUCT((ListeCours[AGENDA]=EmploiDuTemps[[#Headers],[MERCREDI]])*(ROUNDDOWN($B19,10)>=ROUNDDOWN(ListeCours[HEURE DE DÉBUT],10))*($B19<=ListeCours[HEURE DE FIN]),ListeCours[UNIQUE]),ListeCours[UNIQUE],0),2),0)","v":0},{"$f":"IFERROR(INDEX(ListeCours[],MATCH(SUMPRODUCT((ListeCours[AGENDA]=EmploiDuTemps[[#Headers],[JEUDI]])*(ROUNDDOWN($B19,10)>=ROUNDDOWN(ListeCours[HEURE DE DÉBUT],10))*($B19<=ListeCours[HEURE DE FIN]),ListeCours[UNIQUE]),ListeCours[UNIQUE],0),2),0)","v":0},{"$f":"IFERROR(INDEX(ListeCours[],MATCH(SUMPRODUCT((ListeCours[AGENDA]=EmploiDuTemps[[#Headers],[VENDREDI]])*(ROUNDDOWN($B19,10)>=ROUNDDOWN(ListeCours[HEURE DE DÉBUT],10))*($B19<=ListeCours[HEURE DE FIN]),ListeCours[UNIQUE]),ListeCours[UNIQUE],0),2),0)","v":0},{"$f":"IFERROR(INDEX(ListeCours[],MATCH(SUMPRODUCT((ListeCours[AGENDA]=EmploiDuTemps[[#Headers],[SAMEDI]])*(ROUNDDOWN($B19,10)>=ROUNDDOWN(ListeCours[HEURE DE DÉBUT],10))*($B19<=ListeCours[HEURE DE FIN]),ListeCours[UNIQUE]),ListeCours[UNIQUE],0),2),0)","v":0},{"$f":"IFERROR(INDEX(ListeCours[],MATCH(SUMPRODUCT((ListeCours[AGENDA]=EmploiDuTemps[[#Headers],[DIMANCHE]])*(ROUNDDOWN($B19,10)>=ROUNDDOWN(ListeCours[HEURE DE DÉBUT],10))*($B19<=ListeCours[HEURE DE FIN]),ListeCours[UNIQUE]),ListeCours[UNIQUE],0),2),0)","v":"ESP-001"}]
[null,"11:00:00",{"$f":"IFERROR(INDEX(ListeCours[],MATCH(SUMPRODUCT((ListeCours[AGENDA]=EmploiDuTemps[[#Headers],[LUNDI]])*(ROUNDDOWN($B20,10)>=ROUNDDOWN(ListeCours[HEURE DE DÉBUT],10))*($B20<=ListeCours[HEURE DE FIN]),ListeCours[UNIQUE]),ListeCours[UNIQUE],0),2),0)","v":0},{"$f":"IFERROR(INDEX(ListeCours[],MATCH(SUMPRODUCT((ListeCours[AGENDA]=EmploiDuTemps[[#Headers],[MARDI]])*(ROUNDDOWN($B20,10)>=ROUNDDOWN(ListeCours[HEURE DE DÉBUT],10))*($B20<=ListeCours[HEURE DE FIN]),ListeCours[UNIQUE]),ListeCours[UNIQUE],0),2),0)","v":"SVT-295"},{"$f":"IFERROR(INDEX(ListeCours[],MATCH(SUMPRODUCT((ListeCours[AGENDA]=EmploiDuTemps[[#Headers],[MERCREDI]])*(ROUNDDOWN($B20,10)>=ROUNDDOWN(ListeCours[HEURE DE DÉBUT],10))*($B20<=ListeCours[HEURE DE FIN]),ListeCours[UNIQUE]),ListeCours[UNIQUE],0),2),0)","v":"PC-295"},{"$f":"IFERROR(INDEX(ListeCours[],MATCH(SUMPRODUCT((ListeCours[AGENDA]=EmploiDuTemps[[#Headers],[JEUDI]])*(ROUNDDOWN($B20,10)>=ROUNDDOWN(ListeCours[HEURE DE DÉBUT],10))*($B20<=ListeCours[HEURE DE FIN]),ListeCours[UNIQUE]),ListeCours[UNIQUE],0),2),0)","v":0},{"$f":"IFERROR(INDEX(ListeCours[],MATCH(SUMPRODUCT((ListeCours[AGENDA]=EmploiDuTemps[[#Headers],[VENDREDI]])*(ROUNDDOWN($B20,10)>=ROUNDDOWN(ListeCours[HEURE DE DÉBUT],10))*($B20<=ListeCours[HEURE DE FIN]),ListeCours[UNIQUE]),ListeCours[UNIQUE],0),2),0)","v":0},{"$f":"IFERROR(INDEX(ListeCours[],MATCH(SUMPRODUCT((ListeCours[AGENDA]=EmploiDuTemps[[#Headers],[SAMEDI]])*(ROUNDDOWN($B20,10)>=ROUNDDOWN(ListeCours[HEURE DE DÉBUT],10))*($B20<=ListeCours[HEURE DE FIN]),ListeCours[UNIQUE]),ListeCours[UNIQUE],0),2),0)","v":0},{"$f":"IFERROR(INDEX(ListeCours[],MATCH(SUMPRODUCT((ListeCours[AGENDA]=EmploiDuTemps[[#Headers],[DIMANCHE]])*(ROUNDDOWN($B20,10)>=ROUNDDOWN(ListeCours[HEURE DE DÉBUT],10))*($B20<=ListeCours[HEURE DE FIN]),ListeCours[UNIQUE]),ListeCours[UNIQUE],0),2),0)","v":"ESP-001"}]
[null,"11:15:00",{"$f":"IFERROR(INDEX(ListeCours[],MATCH(SUMPRODUCT((ListeCours[AGENDA]=EmploiDuTemps[[#Headers],[LUNDI]])*(ROUNDDOWN($B21,10)>=ROUNDDOWN(ListeCours[HEURE DE DÉBUT],10))*($B21<=ListeCours[HEURE DE FIN]),ListeCours[UNIQUE]),ListeCours[UNIQUE],0),2),0)","v":0},{"$f":"IFERROR(INDEX(ListeCours[],MATCH(SUMPRODUCT((ListeCours[AGENDA]=EmploiDuTemps[[#Headers],[MARDI]])*(ROUNDDOWN($B21,10)>=ROUNDDOWN(ListeCours[HEURE DE DÉBUT],10))*($B21<=ListeCours[HEURE DE FIN]),ListeCours[UNIQUE]),ListeCours[UNIQUE],0),2),0)","v":"SVT-295"},{"$f":"IFERROR(INDEX(ListeCours[],MATCH(SUMPRODUCT((ListeCours[AGENDA]=EmploiDuTemps[[#Headers],[MERCREDI]])*(ROUNDDOWN($B21,10)>=ROUNDDOWN(ListeCours[HEURE DE DÉBUT],10))*($B21<=ListeCours[HEURE DE FIN]),ListeCours[UNIQUE]),ListeCours[UNIQUE],0),2),0)","v":"PC-295"},{"$f":"IFERROR(INDEX(ListeCours[],MATCH(SUMPRODUCT((ListeCours[AGENDA]=EmploiDuTemps[[#Headers],[JEUDI]])*(ROUNDDOWN($B21,10)>=ROUNDDOWN(ListeCours[HEURE DE DÉBUT],10))*($B21<=ListeCours[HEURE DE FIN]),ListeCours[UNIQUE]),ListeCours[UNIQUE],0),2),0)","v":0},{"$f":"IFERROR(INDEX(ListeCours[],MATCH(SUMPRODUCT((ListeCours[AGENDA]=EmploiDuTemps[[#Headers],[VENDREDI]])*(ROUNDDOWN($B21,10)>=ROUNDDOWN(ListeCours[HEURE DE DÉBUT],10))*($B21<=ListeCours[HEURE DE FIN]),ListeCours[UNIQUE]),ListeCours[UNIQUE],0),2),0)","v":0},{"$f":"IFERROR(INDEX(ListeCours[],MATCH(SUMPRODUCT((ListeCours[AGENDA]=EmploiDuTemps[[#Headers],[SAMEDI]])*(ROUNDDOWN($B21,10)>=ROUNDDOWN(ListeCours[HEURE DE DÉBUT],10))*($B21<=ListeCours[HEURE DE FIN]),ListeCours[UNIQUE]),ListeCours[UNIQUE],0),2),0)","v":0},{"$f":"IFERROR(INDEX(ListeCours[],MATCH(SUMPRODUCT((ListeCours[AGENDA]=EmploiDuTemps[[#Headers],[DIMANCHE]])*(ROUNDDOWN($B21,10)>=ROUNDDOWN(ListeCours[HEURE DE DÉBUT],10))*($B21<=ListeCours[HEURE DE FIN]),ListeCours[UNIQUE]),ListeCours[UNIQUE],0),2),0)","v":"ESP-001"}]
[null,"11:30:00",{"$f":"IFERROR(INDEX(ListeCours[],MATCH(SUMPRODUCT((ListeCours[AGENDA]=EmploiDuTemps[[#Headers],[LUNDI]])*(ROUNDDOWN($B22,10)>=ROUNDDOWN(ListeCours[HEURE DE DÉBUT],10))*($B22<=ListeCours[HEURE DE FIN]),ListeCours[UNIQUE]),ListeCours[UNIQUE],0),2),0)","v":0},{"$f":"IFERROR(INDEX(ListeCours[],MATCH(SUMPRODUCT((ListeCours[AGENDA]=EmploiDuTemps[[#Headers],[MARDI]])*(ROUNDDOWN($B22,10)>=ROUNDDOWN(ListeCours[HEURE DE DÉBUT],10))*($B22<=ListeCours[HEURE DE FIN]),ListeCours[UNIQUE]),ListeCours[UNIQUE],0),2),0)","v":"SVT-295"},{"$f":"IFERROR(INDEX(ListeCours[],MATCH(SUMPRODUCT((ListeCours[AGENDA]=EmploiDuTemps[[#Headers],[MERCREDI]])*(ROUNDDOWN($B22,10)>=ROUNDDOWN(ListeCours[HEURE DE DÉBUT],10))*($B22<=ListeCours[HEURE DE FIN]),ListeCours[UNIQUE]),ListeCours[UNIQUE],0),2),0)","v":"PC-295"},{"$f":"IFERROR(INDEX(ListeCours[],MATCH(SUMPRODUCT((ListeCours[AGENDA]=EmploiDuTemps[[#Headers],[JEUDI]])*(ROUNDDOWN($B22,10)>=ROUNDDOWN(ListeCours[HEURE DE DÉBUT],10))*($B22<=ListeCours[HEURE DE FIN]),ListeCours[UNIQUE]),ListeCours[UNIQUE],0),2),0)","v":0},{"$f":"IFERROR(INDEX(ListeCours[],MATCH(SUMPRODUCT((ListeCours[AGENDA]=EmploiDuTemps[[#Headers],[VENDREDI]])*(ROUNDDOWN($B22,10)>=ROUNDDOWN(ListeCours[HEURE DE DÉBUT],10))*($B22<=ListeCours[HEURE DE FIN]),ListeCours[UNIQUE]),ListeCours[UNIQUE],0),2),0)","v":0},{"$f":"IFERROR(INDEX(ListeCours[],MATCH(SUMPRODUCT((ListeCours[AGENDA]=EmploiDuTemps[[#Headers],[SAMEDI]])*(ROUNDDOWN($B22,10)>=ROUNDDOWN(ListeCours[HEURE DE DÉBUT],10))*($B22<=ListeCours[HEURE DE FIN]),ListeCours[UNIQUE]),ListeCours[UNIQUE],0),2),0)","v":0},{"$f":"IFERROR(INDEX(ListeCours[],MATCH(SUMPRODUCT((ListeCours[AGENDA]=EmploiDuTemps[[#Headers],[DIMANCHE]])*(ROUNDDOWN($B22,10)>=ROUNDDOWN(ListeCours[HEURE DE DÉBUT],10))*($B22<=ListeCours[HEURE DE FIN]),ListeCours[UNIQUE]),ListeCours[UNIQUE],0),2),0)","v":"ESP-001"}]
[null,"11:45:00",{"$f":"IFERROR(INDEX(ListeCours[],MATCH(SUMPRODUCT((ListeCours[AGENDA]=EmploiDuTemps[[#Headers],[LUNDI]])*(ROUNDDOWN($B23,10)>=ROUNDDOWN(ListeCours[HEURE DE DÉBUT],10))*($B23<=ListeCours[HEURE DE FIN]),ListeCours[UNIQUE]),ListeCours[UNIQUE],0),2),0)","v":0},{"$f":"IFERROR(INDEX(ListeCours[],MATCH(SUMPRODUCT((ListeCours[AGENDA]=EmploiDuTemps[[#Headers],[MARDI]])*(ROUNDDOWN($B23,10)>=ROUNDDOWN(ListeCours[HEURE DE DÉBUT],10))*($B23<=ListeCours[HEURE DE FIN]),ListeCours[UNIQUE]),ListeCours[UNIQUE],0),2),0)","v":"SVT-295"},{"$f":"IFERROR(INDEX(ListeCours[],MATCH(SUMPRODUCT((ListeCours[AGENDA]=EmploiDuTemps[[#Headers],[MERCREDI]])*(ROUNDDOWN($B23,10)>=ROUNDDOWN(ListeCours[HEURE DE DÉBUT],10))*($B23<=ListeCours[HEURE DE FIN]),ListeCours[UNIQUE]),ListeCours[UNIQUE],0),2),0)","v":"PC-295"},{"$f":"IFERROR(INDEX(ListeCours[],MATCH(SUMPRODUCT((ListeCours[AGENDA]=EmploiDuTemps[[#Headers],[JEUDI]])*(ROUNDDOWN($B23,10)>=ROUNDDOWN(ListeCours[HEURE DE DÉBUT],10))*($B23<=ListeCours[HEURE DE FIN]),ListeCours[UNIQUE]),ListeCours[UNIQUE],0),2),0)","v":0},{"$f":"IFERROR(INDEX(ListeCours[],MATCH(SUMPRODUCT((ListeCours[AGENDA]=EmploiDuTemps[[#Headers],[VENDREDI]])*(ROUNDDOWN($B23,10)>=ROUNDDOWN(ListeCours[HEURE DE DÉBUT],10))*($B23<=ListeCours[HEURE DE FIN]),ListeCours[UNIQUE]),ListeCours[UNIQUE],0),2),0)","v":0},{"$f":"IFERROR(INDEX(ListeCours[],MATCH(SUMPRODUCT((ListeCours[AGENDA]=EmploiDuTemps[[#Headers],[SAMEDI]])*(ROUNDDOWN($B23,10)>=ROUNDDOWN(ListeCours[HEURE DE DÉBUT],10))*($B23<=ListeCours[HEURE DE FIN]),ListeCours[UNIQUE]),ListeCours[UNIQUE],0),2),0)","v":0},{"$f":"IFERROR(INDEX(ListeCours[],MATCH(SUMPRODUCT((ListeCours[AGENDA]=EmploiDuTemps[[#Headers],[DIMANCHE]])*(ROUNDDOWN($B23,10)>=ROUNDDOWN(ListeCours[HEURE DE DÉBUT],10))*($B23<=ListeCours[HEURE DE FIN]),ListeCours[UNIQUE]),ListeCours[UNIQUE],0),2),0)","v":"ESP-001"}]
[null,"12:00:00",{"$f":"IFERROR(INDEX(ListeCours[],MATCH(SUMPRODUCT((ListeCours[AGENDA]=EmploiDuTemps[[#Headers],[LUNDI]])*(ROUNDDOWN($B24,10)>=ROUNDDOWN(ListeCours[HEURE DE DÉBUT],10))*($B24<=ListeCours[HEURE DE FIN]),ListeCours[UNIQUE]),ListeCours[UNIQUE],0),2),0)","v":0},{"$f":"IFERROR(INDEX(ListeCours[],MATCH(SUMPRODUCT((ListeCours[AGENDA]=EmploiDuTemps[[#Headers],[MARDI]])*(ROUNDDOWN($B24,10)>=ROUNDDOWN(ListeCours[HEURE DE DÉBUT],10))*($B24<=ListeCours[HEURE DE FIN]),ListeCours[UNIQUE]),ListeCours[UNIQUE],0),2),0)","v":"SVT-295"},{"$f":"IFERROR(INDEX(ListeCours[],MATCH(SUMPRODUCT((ListeCours[AGENDA]=EmploiDuTemps[[#Headers],[MERCREDI]])*(ROUNDDOWN($B24,10)>=ROUNDDOWN(ListeCours[HEURE DE DÉBUT],10))*($B24<=ListeCours[HEURE DE FIN]),ListeCours[UNIQUE]),ListeCours[UNIQUE],0),2),0)","v":"PC-295"},{"$f":"IFERROR(INDEX(ListeCours[],MATCH(SUMPRODUCT((ListeCours[AGENDA]=EmploiDuTemps[[#Headers],[JEUDI]])*(ROUNDDOWN($B24,10)>=ROUNDDOWN(ListeCours[HEURE DE DÉBUT],10))*($B24<=ListeCours[HEURE DE FIN]),ListeCours[UNIQUE]),ListeCours[UNIQUE],0),2),0)","v":0},{"$f":"IFERROR(INDEX(ListeCours[],MATCH(SUMPRODUCT((ListeCours[AGENDA]=EmploiDuTemps[[#Headers],[VENDREDI]])*(ROUNDDOWN($B24,10)>=ROUNDDOWN(ListeCours[HEURE DE DÉBUT],10))*($B24<=ListeCours[HEURE DE FIN]),ListeCours[UNIQUE]),ListeCours[UNIQUE],0),2),0)","v":0},{"$f":"IFERROR(INDEX(ListeCours[],MATCH(SUMPRODUCT((ListeCours[AGENDA]=EmploiDuTemps[[#Headers],[SAMEDI]])*(ROUNDDOWN($B24,10)>=ROUNDDOWN(ListeCours[HEURE DE DÉBUT],10))*($B24<=ListeCours[HEURE DE FIN]),ListeCours[UNIQUE]),ListeCours[UNIQUE],0),2),0)","v":0},{"$f":"IFERROR(INDEX(ListeCours[],MATCH(SUMPRODUCT((ListeCours[AGENDA]=EmploiDuTemps[[#Headers],[DIMANCHE]])*(ROUNDDOWN($B24,10)>=ROUNDDOWN(ListeCours[HEURE DE DÉBUT],10))*($B24<=ListeCours[HEURE DE FIN]),ListeCours[UNIQUE]),ListeCours[UNIQUE],0),2),0)","v":"ESP-001"}]
[null,"12:15:00",{"$f":"IFERROR(INDEX(ListeCours[],MATCH(SUMPRODUCT((ListeCours[AGENDA]=EmploiDuTemps[[#Headers],[LUNDI]])*(ROUNDDOWN($B25,10)>=ROUNDDOWN(ListeCours[HEURE DE DÉBUT],10))*($B25<=ListeCours[HEURE DE FIN]),ListeCours[UNIQUE]),ListeCours[UNIQUE],0),2),0)","v":0},{"$f":"IFERROR(INDEX(ListeCours[],MATCH(SUMPRODUCT((ListeCours[AGENDA]=EmploiDuTemps[[#Headers],[MARDI]])*(ROUNDDOWN($B25,10)>=ROUNDDOWN(ListeCours[HEURE DE DÉBUT],10))*($B25<=ListeCours[HEURE DE FIN]),ListeCours[UNIQUE]),ListeCours[UNIQUE],0),2),0)","v":0},{"$f":"IFERROR(INDEX(ListeCours[],MATCH(SUMPRODUCT((ListeCours[AGENDA]=EmploiDuTemps[[#Headers],[MERCREDI]])*(ROUNDDOWN($B25,10)>=ROUNDDOWN(ListeCours[HEURE DE DÉBUT],10))*($B25<=ListeCours[HEURE DE FIN]),ListeCours[UNIQUE]),ListeCours[UNIQUE],0),2),0)","v":0},{"$f":"IFERROR(INDEX(ListeCours[],MATCH(SUMPRODUCT((ListeCours[AGENDA]=EmploiDuTemps[[#Headers],[JEUDI]])*(ROUNDDOWN($B25,10)>=ROUNDDOWN(ListeCours[HEURE DE DÉBUT],10))*($B25<=ListeCours[HEURE DE FIN]),ListeCours[UNIQUE]),ListeCours[UNIQUE],0),2),0)","v":0},{"$f":"IFERROR(INDEX(ListeCours[],MATCH(SUMPRODUCT((ListeCours[AGENDA]=EmploiDuTemps[[#Headers],[VENDREDI]])*(ROUNDDOWN($B25,10)>=ROUNDDOWN(ListeCours[HEURE DE DÉBUT],10))*($B25<=ListeCours[HEURE DE FIN]),ListeCours[UNIQUE]),ListeCours[UNIQUE],0),2),0)","v":0},{"$f":"IFERROR(INDEX(ListeCours[],MATCH(SUMPRODUCT((ListeCours[AGENDA]=EmploiDuTemps[[#Headers],[SAMEDI]])*(ROUNDDOWN($B25,10)>=ROUNDDOWN(ListeCours[HEURE DE DÉBUT],10))*($B25<=ListeCours[HEURE DE FIN]),ListeCours[UNIQUE]),ListeCours[UNIQUE],0),2),0)","v":0},{"$f":"IFERROR(INDEX(ListeCours[],MATCH(SUMPRODUCT((ListeCours[AGENDA]=EmploiDuTemps[[#Headers],[DIMANCHE]])*(ROUNDDOWN($B25,10)>=ROUNDDOWN(ListeCours[HEURE DE DÉBUT],10))*($B25<=ListeCours[HEURE DE FIN]),ListeCours[UNIQUE]),ListeCours[UNIQUE],0),2),0)","v":0}]
[null,"12:30:00",{"$f":"IFERROR(INDEX(ListeCours[],MATCH(SUMPRODUCT((ListeCours[AGENDA]=EmploiDuTemps[[#Headers],[LUNDI]])*(ROUNDDOWN($B26,10)>=ROUNDDOWN(ListeCours[HEURE DE DÉBUT],10))*($B26<=ListeCours[HEURE DE FIN]),ListeCours[UNIQUE]),ListeCours[UNIQUE],0),2),0)","v":0},{"$f":"IFERROR(INDEX(ListeCours[],MATCH(SUMPRODUCT((ListeCours[AGENDA]=EmploiDuTemps[[#Headers],[MARDI]])*(ROUNDDOWN($B26,10)>=ROUNDDOWN(ListeCours[HEURE DE DÉBUT],10))*($B26<=ListeCours[HEURE DE FIN]),ListeCours[UNIQUE]),ListeCours[UNIQUE],0),2),0)","v":0},{"$f":"IFERROR(INDEX(ListeCours[],MATCH(SUMPRODUCT((ListeCours[AGENDA]=EmploiDuTemps[[#Headers],[MERCREDI]])*(ROUNDDOWN($B26,10)>=ROUNDDOWN(ListeCours[HEURE DE DÉBUT],10))*($B26<=ListeCours[HEURE DE FIN]),ListeCours[UNIQUE]),ListeCours[UNIQUE],0),2),0)","v":0},{"$f":"IFERROR(INDEX(ListeCours[],MATCH(SUMPRODUCT((ListeCours[AGENDA]=EmploiDuTemps[[#Headers],[JEUDI]])*(ROUNDDOWN($B26,10)>=ROUNDDOWN(ListeCours[HEURE DE DÉBUT],10))*($B26<=ListeCours[HEURE DE FIN]),ListeCours[UNIQUE]),ListeCours[UNIQUE],0),2),0)","v":0},{"$f":"IFERROR(INDEX(ListeCours[],MATCH(SUMPRODUCT((ListeCours[AGENDA]=EmploiDuTemps[[#Headers],[VENDREDI]])*(ROUNDDOWN($B26,10)>=ROUNDDOWN(ListeCours[HEURE DE DÉBUT],10))*($B26<=ListeCours[HEURE DE FIN]),ListeCours[UNIQUE]),ListeCours[UNIQUE],0),2),0)","v":0},{"$f":"IFERROR(INDEX(ListeCours[],MATCH(SUMPRODUCT((ListeCours[AGENDA]=EmploiDuTemps[[#Headers],[SAMEDI]])*(ROUNDDOWN($B26,10)>=ROUNDDOWN(ListeCours[HEURE DE DÉBUT],10))*($B26<=ListeCours[HEURE DE FIN]),ListeCours[UNIQUE]),ListeCours[UNIQUE],0),2),0)","v":0},{"$f":"IFERROR(INDEX(ListeCours[],MATCH(SUMPRODUCT((ListeCours[AGENDA]=EmploiDuTemps[[#Headers],[DIMANCHE]])*(ROUNDDOWN($B26,10)>=ROUNDDOWN(ListeCours[HEURE DE DÉBUT],10))*($B26<=ListeCours[HEURE DE FIN]),ListeCours[UNIQUE]),ListeCours[UNIQUE],0),2),0)","v":0}]
[null,"12:45:00",{"$f":"IFERROR(INDEX(ListeCours[],MATCH(SUMPRODUCT((ListeCours[AGENDA]=EmploiDuTemps[[#Headers],[LUNDI]])*(ROUNDDOWN($B27,10)>=ROUNDDOWN(ListeCours[HEURE DE DÉBUT],10))*($B27<=ListeCours[HEURE DE FIN]),ListeCours[UNIQUE]),ListeCours[UNIQUE],0),2),0)","v":0},{"$f":"IFERROR(INDEX(ListeCours[],MATCH(SUMPRODUCT((ListeCours[AGENDA]=EmploiDuTemps[[#Headers],[MARDI]])*(ROUNDDOWN($B27,10)>=ROUNDDOWN(ListeCours[HEURE DE DÉBUT],10))*($B27<=ListeCours[HEURE DE FIN]),ListeCours[UNIQUE]),ListeCours[UNIQUE],0),2),0)","v":0},{"$f":"IFERROR(INDEX(ListeCours[],MATCH(SUMPRODUCT((ListeCours[AGENDA]=EmploiDuTemps[[#Headers],[MERCREDI]])*(ROUNDDOWN($B27,10)>=ROUNDDOWN(ListeCours[HEURE DE DÉBUT],10))*($B27<=ListeCours[HEURE DE FIN]),ListeCours[UNIQUE]),ListeCours[UNIQUE],0),2),0)","v":0},{"$f":"IFERROR(INDEX(ListeCours[],MATCH(SUMPRODUCT((ListeCours[AGENDA]=EmploiDuTemps[[#Headers],[JEUDI]])*(ROUNDDOWN($B27,10)>=ROUNDDOWN(ListeCours[HEURE DE DÉBUT],10))*($B27<=ListeCours[HEURE DE FIN]),ListeCours[UNIQUE]),ListeCours[UNIQUE],0),2),0)","v":0},{"$f":"IFERROR(INDEX(ListeCours[],MATCH(SUMPRODUCT((ListeCours[AGENDA]=EmploiDuTemps[[#Headers],[VENDREDI]])*(ROUNDDOWN($B27,10)>=ROUNDDOWN(ListeCours[HEURE DE DÉBUT],10))*($B27<=ListeCours[HEURE DE FIN]),ListeCours[UNIQUE]),ListeCours[UNIQUE],0),2),0)","v":0},{"$f":"IFERROR(INDEX(ListeCours[],MATCH(SUMPRODUCT((ListeCours[AGENDA]=EmploiDuTemps[[#Headers],[SAMEDI]])*(ROUNDDOWN($B27,10)>=ROUNDDOWN(ListeCours[HEURE DE DÉBUT],10))*($B27<=ListeCours[HEURE DE FIN]),ListeCours[UNIQUE]),ListeCours[UNIQUE],0),2),0)","v":0},{"$f":"IFERROR(INDEX(ListeCours[],MATCH(SUMPRODUCT((ListeCours[AGENDA]=EmploiDuTemps[[#Headers],[DIMANCHE]])*(ROUNDDOWN($B27,10)>=ROUNDDOWN(ListeCours[HEURE DE DÉBUT],10))*($B27<=ListeCours[HEURE DE FIN]),ListeCours[UNIQUE]),ListeCours[UNIQUE],0),2),0)","v":0}]
[null,"13:00:00",{"$f":"IFERROR(INDEX(ListeCours[],MATCH(SUMPRODUCT((ListeCours[AGENDA]=EmploiDuTemps[[#Headers],[LUNDI]])*(ROUNDDOWN($B28,10)>=ROUNDDOWN(ListeCours[HEURE DE DÉBUT],10))*($B28<=ListeCours[HEURE DE FIN]),ListeCours[UNIQUE]),ListeCours[UNIQUE],0),2),0)","v":"FR-121"},{"$f":"IFERROR(INDEX(ListeCours[],MATCH(SUMPRODUCT((ListeCours[AGENDA]=EmploiDuTemps[[#Headers],[MARDI]])*(ROUNDDOWN($B28,10)>=ROUNDDOWN(ListeCours[HEURE DE DÉBUT],10))*($B28<=ListeCours[HEURE DE FIN]),ListeCours[UNIQUE]),ListeCours[UNIQUE],0),2),0)","v":0},{"$f":"IFERROR(INDEX(ListeCours[],MATCH(SUMPRODUCT((ListeCours[AGENDA]=EmploiDuTemps[[#Headers],[MERCREDI]])*(ROUNDDOWN($B28,10)>=ROUNDDOWN(ListeCours[HEURE DE DÉBUT],10))*($B28<=ListeCours[HEURE DE FIN]),ListeCours[UNIQUE]),ListeCours[UNIQUE],0),2),0)","v":0},{"$f":"IFERROR(INDEX(ListeCours[],MATCH(SUMPRODUCT((ListeCours[AGENDA]=EmploiDuTemps[[#Headers],[JEUDI]])*(ROUNDDOWN($B28,10)>=ROUNDDOWN(ListeCours[HEURE DE DÉBUT],10))*($B28<=ListeCours[HEURE DE FIN]),ListeCours[UNIQUE]),ListeCours[UNIQUE],0),2),0)","v":"ANG-121"},{"$f":"IFERROR(INDEX(ListeCours[],MATCH(SUMPRODUCT((ListeCours[AGENDA]=EmploiDuTemps[[#Headers],[VENDREDI]])*(ROUNDDOWN($B28,10)>=ROUNDDOWN(ListeCours[HEURE DE DÉBUT],10))*($B28<=ListeCours[HEURE DE FIN]),ListeCours[UNIQUE]),ListeCours[UNIQUE],0),2),0)","v":0},{"$f":"IFERROR(INDEX(ListeCours[],MATCH(SUMPRODUCT((ListeCours[AGENDA]=EmploiDuTemps[[#Headers],[SAMEDI]])*(ROUNDDOWN($B28,10)>=ROUNDDOWN(ListeCours[HEURE DE DÉBUT],10))*($B28<=ListeCours[HEURE DE FIN]),ListeCours[UNIQUE]),ListeCours[UNIQUE],0),2),0)","v":0},{"$f":"IFERROR(INDEX(ListeCours[],MATCH(SUMPRODUCT((ListeCours[AGENDA]=EmploiDuTemps[[#Headers],[DIMANCHE]])*(ROUNDDOWN($B28,10)>=ROUNDDOWN(ListeCours[HEURE DE DÉBUT],10))*($B28<=ListeCours[HEURE DE FIN]),ListeCours[UNIQUE]),ListeCours[UNIQUE],0),2),0)","v":0}]
[null,"13:15:00",{"$f":"IFERROR(INDEX(ListeCours[],MATCH(SUMPRODUCT((ListeCours[AGENDA]=EmploiDuTemps[[#Headers],[LUNDI]])*(ROUNDDOWN($B29,10)>=ROUNDDOWN(ListeCours[HEURE DE DÉBUT],10))*($B29<=ListeCours[HEURE DE FIN]),ListeCours[UNIQUE]),ListeCours[UNIQUE],0),2),0)","v":"FR-121"},{"$f":"IFERROR(INDEX(ListeCours[],MATCH(SUMPRODUCT((ListeCours[AGENDA]=EmploiDuTemps[[#Headers],[MARDI]])*(ROUNDDOWN($B29,10)>=ROUNDDOWN(ListeCours[HEURE DE DÉBUT],10))*($B29<=ListeCours[HEURE DE FIN]),ListeCours[UNIQUE]),ListeCours[UNIQUE],0),2),0)","v":0},{"$f":"IFERROR(INDEX(ListeCours[],MATCH(SUMPRODUCT((ListeCours[AGENDA]=EmploiDuTemps[[#Headers],[MERCREDI]])*(ROUNDDOWN($B29,10)>=ROUNDDOWN(ListeCours[HEURE DE DÉBUT],10))*($B29<=ListeCours[HEURE DE FIN]),ListeCours[UNIQUE]),ListeCours[UNIQUE],0),2),0)","v":0},{"$f":"IFERROR(INDEX(ListeCours[],MATCH(SUMPRODUCT((ListeCours[AGENDA]=EmploiDuTemps[[#Headers],[JEUDI]])*(ROUNDDOWN($B29,10)>=ROUNDDOWN(ListeCours[HEURE DE DÉBUT],10))*($B29<=ListeCours[HEURE DE FIN]),ListeCours[UNIQUE]),ListeCours[UNIQUE],0),2),0)","v":"ANG-121"},{"$f":"IFERROR(INDEX(ListeCours[],MATCH(SUMPRODUCT((ListeCours[AGENDA]=EmploiDuTemps[[#Headers],[VENDREDI]])*(ROUNDDOWN($B29,10)>=ROUNDDOWN(ListeCours[HEURE DE DÉBUT],10))*($B29<=ListeCours[HEURE DE FIN]),ListeCours[UNIQUE]),ListeCours[UNIQUE],0),2),0)","v":0},{"$f":"IFERROR(INDEX(ListeCours[],MATCH(SUMPRODUCT((ListeCours[AGENDA]=EmploiDuTemps[[#Headers],[SAMEDI]])*(ROUNDDOWN($B29,10)>=ROUNDDOWN(ListeCours[HEURE DE DÉBUT],10))*($B29<=ListeCours[HEURE DE FIN]),ListeCours[UNIQUE]),ListeCours[UNIQUE],0),2),0)","v":0},{"$f":"IFERROR(INDEX(ListeCours[],MATCH(SUMPRODUCT((ListeCours[AGENDA]=EmploiDuTemps[[#Headers],[DIMANCHE]])*(ROUNDDOWN($B29,10)>=ROUNDDOWN(ListeCours[HEURE DE DÉBUT],10))*($B29<=ListeCours[HEURE DE FIN]),ListeCours[UNIQUE]),ListeCours[UNIQUE],0),2),0)","v":0}]
[null,"13:30:00",{"$f":"IFERROR(INDEX(ListeCours[],MATCH(SUMPRODUCT((ListeCours[AGENDA]=EmploiDuTemps[[#Headers],[LUNDI]])*(ROUNDDOWN($B30,10)>=ROUNDDOWN(ListeCours[HEURE DE DÉBUT],10))*($B30<=ListeCours[HEURE DE FIN]),ListeCours[UNIQUE]),ListeCours[UNIQUE],0),2),0)","v":"FR-121"},{"$f":"IFERROR(INDEX(ListeCours[],MATCH(SUMPRODUCT((ListeCours[AGENDA]=EmploiDuTemps[[#Headers],[MARDI]])*(ROUNDDOWN($B30,10)>=ROUNDDOWN(ListeCours[HEURE DE DÉBUT],10))*($B30<=ListeCours[HEURE DE FIN]),ListeCours[UNIQUE]),ListeCours[UNIQUE],0),2),0)","v":0},{"$f":"IFERROR(INDEX(ListeCours[],MATCH(SUMPRODUCT((ListeCours[AGENDA]=EmploiDuTemps[[#Headers],[MERCREDI]])*(ROUNDDOWN($B30,10)>=ROUNDDOWN(ListeCours[HEURE DE DÉBUT],10))*($B30<=ListeCours[HEURE DE FIN]),ListeCours[UNIQUE]),ListeCours[UNIQUE],0),2),0)","v":0},{"$f":"IFERROR(INDEX(ListeCours[],MATCH(SUMPRODUCT((ListeCours[AGENDA]=EmploiDuTemps[[#Headers],[JEUDI]])*(ROUNDDOWN($B30,10)>=ROUNDDOWN(ListeCours[HEURE DE DÉBUT],10))*($B30<=ListeCours[HEURE DE FIN]),ListeCours[UNIQUE]),ListeCours[UNIQUE],0),2),0)","v":"ANG-121"},{"$f":"IFERROR(INDEX(ListeCours[],MATCH(SUMPRODUCT((ListeCours[AGENDA]=EmploiDuTemps[[#Headers],[VENDREDI]])*(ROUNDDOWN($B30,10)>=ROUNDDOWN(ListeCours[HEURE DE DÉBUT],10))*($B30<=ListeCours[HEURE DE FIN]),ListeCours[UNIQUE]),ListeCours[UNIQUE],0),2),0)","v":0},{"$f":"IFERROR(INDEX(ListeCours[],MATCH(SUMPRODUCT((ListeCours[AGENDA]=EmploiDuTemps[[#Headers],[SAMEDI]])*(ROUNDDOWN($B30,10)>=ROUNDDOWN(ListeCours[HEURE DE DÉBUT],10))*($B30<=ListeCours[HEURE DE FIN]),ListeCours[UNIQUE]),ListeCours[UNIQUE],0),2),0)","v":0},{"$f":"IFERROR(INDEX(ListeCours[],MATCH(SUMPRODUCT((ListeCours[AGENDA]=EmploiDuTemps[[#Headers],[DIMANCHE]])*(ROUNDDOWN($B30,10)>=ROUNDDOWN(ListeCours[HEURE DE DÉBUT],10))*($B30<=ListeCours[HEURE DE FIN]),ListeCours[UNIQUE]),ListeCours[UNIQUE],0),2),0)","v":0}]
[null,"13:45:00",{"$f":"IFERROR(INDEX(ListeCours[],MATCH(SUMPRODUCT((ListeCours[AGENDA]=EmploiDuTemps[[#Headers],[LUNDI]])*(ROUNDDOWN($B31,10)>=ROUNDDOWN(ListeCours[HEURE DE DÉBUT],10))*($B31<=ListeCours[HEURE DE FIN]),ListeCours[UNIQUE]),ListeCours[UNIQUE],0),2),0)","v":"FR-121"},{"$f":"IFERROR(INDEX(ListeCours[],MATCH(SUMPRODUCT((ListeCours[AGENDA]=EmploiDuTemps[[#Headers],[MARDI]])*(ROUNDDOWN($B31,10)>=ROUNDDOWN(ListeCours[HEURE DE DÉBUT],10))*($B31<=ListeCours[HEURE DE FIN]),ListeCours[UNIQUE]),ListeCours[UNIQUE],0),2),0)","v":0},{"$f":"IFERROR(INDEX(ListeCours[],MATCH(SUMPRODUCT((ListeCours[AGENDA]=EmploiDuTemps[[#Headers],[MERCREDI]])*(ROUNDDOWN($B31,10)>=ROUNDDOWN(ListeCours[HEURE DE DÉBUT],10))*($B31<=ListeCours[HEURE DE FIN]),ListeCours[UNIQUE]),ListeCours[UNIQUE],0),2),0)","v":0},{"$f":"IFERROR(INDEX(ListeCours[],MATCH(SUMPRODUCT((ListeCours[AGENDA]=EmploiDuTemps[[#Headers],[JEUDI]])*(ROUNDDOWN($B31,10)>=ROUNDDOWN(ListeCours[HEURE DE DÉBUT],10))*($B31<=ListeCours[HEURE DE FIN]),ListeCours[UNIQUE]),ListeCours[UNIQUE],0),2),0)","v":"ANG-121"},{"$f":"IFERROR(INDEX(ListeCours[],MATCH(SUMPRODUCT((ListeCours[AGENDA]=EmploiDuTemps[[#Headers],[VENDREDI]])*(ROUNDDOWN($B31,10)>=ROUNDDOWN(ListeCours[HEURE DE DÉBUT],10))*($B31<=ListeCours[HEURE DE FIN]),ListeCours[UNIQUE]),ListeCours[UNIQUE],0),2),0)","v":0},{"$f":"IFERROR(INDEX(ListeCours[],MATCH(SUMPRODUCT((ListeCours[AGENDA]=EmploiDuTemps[[#Headers],[SAMEDI]])*(ROUNDDOWN($B31,10)>=ROUNDDOWN(ListeCours[HEURE DE DÉBUT],10))*($B31<=ListeCours[HEURE DE FIN]),ListeCours[UNIQUE]),ListeCours[UNIQUE],0),2),0)","v":0},{"$f":"IFERROR(INDEX(ListeCours[],MATCH(SUMPRODUCT((ListeCours[AGENDA]=EmploiDuTemps[[#Headers],[DIMANCHE]])*(ROUNDDOWN($B31,10)>=ROUNDDOWN(ListeCours[HEURE DE DÉBUT],10))*($B31<=ListeCours[HEURE DE FIN]),ListeCours[UNIQUE]),ListeCours[UNIQUE],0),2),0)","v":0}]
[null,"14:00:00",{"$f":"IFERROR(INDEX(ListeCours[],MATCH(SUMPRODUCT((ListeCours[AGENDA]=EmploiDuTemps[[#Headers],[LUNDI]])*(ROUNDDOWN($B32,10)>=ROUNDDOWN(ListeCours[HEURE DE DÉBUT],10))*($B32<=ListeCours[HEURE DE FIN]),ListeCours[UNIQUE]),ListeCours[UNIQUE],0),2),0)","v":"FR-121"},{"$f":"IFERROR(INDEX(ListeCours[],MATCH(SUMPRODUCT((ListeCours[AGENDA]=EmploiDuTemps[[#Headers],[MARDI]])*(ROUNDDOWN($B32,10)>=ROUNDDOWN(ListeCours[HEURE DE DÉBUT],10))*($B32<=ListeCours[HEURE DE FIN]),ListeCours[UNIQUE]),ListeCours[UNIQUE],0),2),0)","v":0},{"$f":"IFERROR(INDEX(ListeCours[],MATCH(SUMPRODUCT((ListeCours[AGENDA]=EmploiDuTemps[[#Headers],[MERCREDI]])*(ROUNDDOWN($B32,10)>=ROUNDDOWN(ListeCours[HEURE DE DÉBUT],10))*($B32<=ListeCours[HEURE DE FIN]),ListeCours[UNIQUE]),ListeCours[UNIQUE],0),2),0)","v":0},{"$f":"IFERROR(INDEX(ListeCours[],MATCH(SUMPRODUCT((ListeCours[AGENDA]=EmploiDuTemps[[#Headers],[JEUDI]])*(ROUNDDOWN($B32,10)>=ROUNDDOWN(ListeCours[HEURE DE DÉBUT],10))*($B32<=ListeCours[HEURE DE FIN]),ListeCours[UNIQUE]),ListeCours[UNIQUE],0),2),0)","v":"ANG-121"},{"$f":"IFERROR(INDEX(ListeCours[],MATCH(SUMPRODUCT((ListeCours[AGENDA]=EmploiDuTemps[[#Headers],[VENDREDI]])*(ROUNDDOWN($B32,10)>=ROUNDDOWN(ListeCours[HEURE DE DÉBUT],10))*($B32<=ListeCours[HEURE DE FIN]),ListeCours[UNIQUE]),ListeCours[UNIQUE],0),2),0)","v":0},{"$f":"IFERROR(INDEX(ListeCours[],MATCH(SUMPRODUCT((ListeCours[AGENDA]=EmploiDuTemps[[#Headers],[SAMEDI]])*(ROUNDDOWN($B32,10)>=ROUNDDOWN(ListeCours[HEURE DE DÉBUT],10))*($B32<=ListeCours[HEURE DE FIN]),ListeCours[UNIQUE]),ListeCours[UNIQUE],0),2),0)","v":0},{"$f":"IFERROR(INDEX(ListeCours[],MATCH(SUMPRODUCT((ListeCours[AGENDA]=EmploiDuTemps[[#Headers],[DIMANCHE]])*(ROUNDDOWN($B32,10)>=ROUNDDOWN(ListeCours[HEURE DE DÉBUT],10))*($B32<=ListeCours[HEURE DE FIN]),ListeCours[UNIQUE]),ListeCours[UNIQUE],0),2),0)","v":0}]
[null,"14:15:00",{"$f":"IFERROR(INDEX(ListeCours[],MATCH(SUMPRODUCT((ListeCours[AGENDA]=EmploiDuTemps[[#Headers],[LUNDI]])*(ROUNDDOWN($B33,10)>=ROUNDDOWN(ListeCours[HEURE DE DÉBUT],10))*($B33<=ListeCours[HEURE DE FIN]),ListeCours[UNIQUE]),ListeCours[UNIQUE],0),2),0)","v":0},{"$f":"IFERROR(INDEX(ListeCours[],MATCH(SUMPRODUCT((ListeCours[AGENDA]=EmploiDuTemps[[#Headers],[MARDI]])*(ROUNDDOWN($B33,10)>=ROUNDDOWN(ListeCours[HEURE DE DÉBUT],10))*($B33<=ListeCours[HEURE DE FIN]),ListeCours[UNIQUE]),ListeCours[UNIQUE],0),2),0)","v":0},{"$f":"IFERROR(INDEX(ListeCours[],MATCH(SUMPRODUCT((ListeCours[AGENDA]=EmploiDuTemps[[#Headers],[MERCREDI]])*(ROUNDDOWN($B33,10)>=ROUNDDOWN(ListeCours[HEURE DE DÉBUT],10))*($B33<=ListeCours[HEURE DE FIN]),ListeCours[UNIQUE]),ListeCours[UNIQUE],0),2),0)","v":0},{"$f":"IFERROR(INDEX(ListeCours[],MATCH(SUMPRODUCT((ListeCours[AGENDA]=EmploiDuTemps[[#Headers],[JEUDI]])*(ROUNDDOWN($B33,10)>=ROUNDDOWN(ListeCours[HEURE DE DÉBUT],10))*($B33<=ListeCours[HEURE DE FIN]),ListeCours[UNIQUE]),ListeCours[UNIQUE],0),2),0)","v":0},{"$f":"IFERROR(INDEX(ListeCours[],MATCH(SUMPRODUCT((ListeCours[AGENDA]=EmploiDuTemps[[#Headers],[VENDREDI]])*(ROUNDDOWN($B33,10)>=ROUNDDOWN(ListeCours[HEURE DE DÉBUT],10))*($B33<=ListeCours[HEURE DE FIN]),ListeCours[UNIQUE]),ListeCours[UNIQUE],0),2),0)","v":0},{"$f":"IFERROR(INDEX(ListeCours[],MATCH(SUMPRODUCT((ListeCours[AGENDA]=EmploiDuTemps[[#Headers],[SAMEDI]])*(ROUNDDOWN($B33,10)>=ROUNDDOWN(ListeCours[HEURE DE DÉBUT],10))*($B33<=ListeCours[HEURE DE FIN]),ListeCours[UNIQUE]),ListeCours[UNIQUE],0),2),0)","v":0},{"$f":"IFERROR(INDEX(ListeCours[],MATCH(SUMPRODUCT((ListeCours[AGENDA]=EmploiDuTemps[[#Headers],[DIMANCHE]])*(ROUNDDOWN($B33,10)>=ROUNDDOWN(ListeCours[HEURE DE DÉBUT],10))*($B33<=ListeCours[HEURE DE FIN]),ListeCours[UNIQUE]),ListeCours[UNIQUE],0),2),0)","v":0}]
[null,"14:30:00",{"$f":"IFERROR(INDEX(ListeCours[],MATCH(SUMPRODUCT((ListeCours[AGENDA]=EmploiDuTemps[[#Headers],[LUNDI]])*(ROUNDDOWN($B34,10)>=ROUNDDOWN(ListeCours[HEURE DE DÉBUT],10))*($B34<=ListeCours[HEURE DE FIN]),ListeCours[UNIQUE]),ListeCours[UNIQUE],0),2),0)","v":0},{"$f":"IFERROR(INDEX(ListeCours[],MATCH(SUMPRODUCT((ListeCours[AGENDA]=EmploiDuTemps[[#Headers],[MARDI]])*(ROUNDDOWN($B34,10)>=ROUNDDOWN(ListeCours[HEURE DE DÉBUT],10))*($B34<=ListeCours[HEURE DE FIN]),ListeCours[UNIQUE]),ListeCours[UNIQUE],0),2),0)","v":0},{"$f":"IFERROR(INDEX(ListeCours[],MATCH(SUMPRODUCT((ListeCours[AGENDA]=EmploiDuTemps[[#Headers],[MERCREDI]])*(ROUNDDOWN($B34,10)>=ROUNDDOWN(ListeCours[HEURE DE DÉBUT],10))*($B34<=ListeCours[HEURE DE FIN]),ListeCours[UNIQUE]),ListeCours[UNIQUE],0),2),0)","v":0},{"$f":"IFERROR(INDEX(ListeCours[],MATCH(SUMPRODUCT((ListeCours[AGENDA]=EmploiDuTemps[[#Headers],[JEUDI]])*(ROUNDDOWN($B34,10)>=ROUNDDOWN(ListeCours[HEURE DE DÉBUT],10))*($B34<=ListeCours[HEURE DE FIN]),ListeCours[UNIQUE]),ListeCours[UNIQUE],0),2),0)","v":0},{"$f":"IFERROR(INDEX(ListeCours[],MATCH(SUMPRODUCT((ListeCours[AGENDA]=EmploiDuTemps[[#Headers],[VENDREDI]])*(ROUNDDOWN($B34,10)>=ROUNDDOWN(ListeCours[HEURE DE DÉBUT],10))*($B34<=ListeCours[HEURE DE FIN]),ListeCours[UNIQUE]),ListeCours[UNIQUE],0),2),0)","v":0},{"$f":"IFERROR(INDEX(ListeCours[],MATCH(SUMPRODUCT((ListeCours[AGENDA]=EmploiDuTemps[[#Headers],[SAMEDI]])*(ROUNDDOWN($B34,10)>=ROUNDDOWN(ListeCours[HEURE DE DÉBUT],10))*($B34<=ListeCours[HEURE DE FIN]),ListeCours[UNIQUE]),ListeCours[UNIQUE],0),2),0)","v":0},{"$f":"IFERROR(INDEX(ListeCours[],MATCH(SUMPRODUCT((ListeCours[AGENDA]=EmploiDuTemps[[#Headers],[DIMANCHE]])*(ROUNDDOWN($B34,10)>=ROUNDDOWN(ListeCours[HEURE DE DÉBUT],10))*($B34<=ListeCours[HEURE DE FIN]),ListeCours[UNIQUE]),ListeCours[UNIQUE],0),2),0)","v":0}]
[null,"14:45:00",{"$f":"IFERROR(INDEX(ListeCours[],MATCH(SUMPRODUCT((ListeCours[AGENDA]=EmploiDuTemps[[#Headers],[LUNDI]])*(ROUNDDOWN($B35,10)>=ROUNDDOWN(ListeCours[HEURE DE DÉBUT],10))*($B35<=ListeCours[HEURE DE FIN]),ListeCours[UNIQUE]),ListeCours[UNIQUE],0),2),0)","v":0},{"$f":"IFERROR(INDEX(ListeCours[],MATCH(SUMPRODUCT((ListeCours[AGENDA]=EmploiDuTemps[[#Headers],[MARDI]])*(ROUNDDOWN($B35,10)>=ROUNDDOWN(ListeCours[HEURE DE DÉBUT],10))*($B35<=ListeCours[HEURE DE FIN]),ListeCours[UNIQUE]),ListeCours[UNIQUE],0),2),0)","v":0},{"$f":"IFERROR(INDEX(ListeCours[],MATCH(SUMPRODUCT((ListeCours[AGENDA]=EmploiDuTemps[[#Headers],[MERCREDI]])*(ROUNDDOWN($B35,10)>=ROUNDDOWN(ListeCours[HEURE DE DÉBUT],10))*($B35<=ListeCours[HEURE DE FIN]),ListeCours[UNIQUE]),ListeCours[UNIQUE],0),2),0)","v":0},{"$f":"IFERROR(INDEX(ListeCours[],MATCH(SUMPRODUCT((ListeCours[AGENDA]=EmploiDuTemps[[#Headers],[JEUDI]])*(ROUNDDOWN($B35,10)>=ROUNDDOWN(ListeCours[HEURE DE DÉBUT],10))*($B35<=ListeCours[HEURE DE FIN]),ListeCours[UNIQUE]),ListeCours[UNIQUE],0),2),0)","v":0},{"$f":"IFERROR(INDEX(ListeCours[],MATCH(SUMPRODUCT((ListeCours[AGENDA]=EmploiDuTemps[[#Headers],[VENDREDI]])*(ROUNDDOWN($B35,10)>=ROUNDDOWN(ListeCours[HEURE DE DÉBUT],10))*($B35<=ListeCours[HEURE DE FIN]),ListeCours[UNIQUE]),ListeCours[UNIQUE],0),2),0)","v":0},{"$f":"IFERROR(INDEX(ListeCours[],MATCH(SUMPRODUCT((ListeCours[AGENDA]=EmploiDuTemps[[#Headers],[SAMEDI]])*(ROUNDDOWN($B35,10)>=ROUNDDOWN(ListeCours[HEURE DE DÉBUT],10))*($B35<=ListeCours[HEURE DE FIN]),ListeCours[UNIQUE]),ListeCours[UNIQUE],0),2),0)","v":0},{"$f":"IFERROR(INDEX(ListeCours[],MATCH(SUMPRODUCT((ListeCours[AGENDA]=EmploiDuTemps[[#Headers],[DIMANCHE]])*(ROUNDDOWN($B35,10)>=ROUNDDOWN(ListeCours[HEURE DE DÉBUT],10))*($B35<=ListeCours[HEURE DE FIN]),ListeCours[UNIQUE]),ListeCours[UNIQUE],0),2),0)","v":0}]
[null,"15:00:00",{"$f":"IFERROR(INDEX(ListeCours[],MATCH(SUMPRODUCT((ListeCours[AGENDA]=EmploiDuTemps[[#Headers],[LUNDI]])*(ROUNDDOWN($B36,10)>=ROUNDDOWN(ListeCours[HEURE DE DÉBUT],10))*($B36<=ListeCours[HEURE DE FIN]),ListeCours[UNIQUE]),ListeCours[UNIQUE],0),2),0)","v":0},{"$f":"IFERROR(INDEX(ListeCours[],MATCH(SUMPRODUCT((ListeCours[AGENDA]=EmploiDuTemps[[#Headers],[MARDI]])*(ROUNDDOWN($B36,10)>=ROUNDDOWN(ListeCours[HEURE DE DÉBUT],10))*($B36<=ListeCours[HEURE DE FIN]),ListeCours[UNIQUE]),ListeCours[UNIQUE],0),2),0)","v":0},{"$f":"IFERROR(INDEX(ListeCours[],MATCH(SUMPRODUCT((ListeCours[AGENDA]=EmploiDuTemps[[#Headers],[MERCREDI]])*(ROUNDDOWN($B36,10)>=ROUNDDOWN(ListeCours[HEURE DE DÉBUT],10))*($B36<=ListeCours[HEURE DE FIN]),ListeCours[UNIQUE]),ListeCours[UNIQUE],0),2),0)","v":0},{"$f":"IFERROR(INDEX(ListeCours[],MATCH(SUMPRODUCT((ListeCours[AGENDA]=EmploiDuTemps[[#Headers],[JEUDI]])*(ROUNDDOWN($B36,10)>=ROUNDDOWN(ListeCours[HEURE DE DÉBUT],10))*($B36<=ListeCours[HEURE DE FIN]),ListeCours[UNIQUE]),ListeCours[UNIQUE],0),2),0)","v":0},{"$f":"IFERROR(INDEX(ListeCours[],MATCH(SUMPRODUCT((ListeCours[AGENDA]=EmploiDuTemps[[#Headers],[VENDREDI]])*(ROUNDDOWN($B36,10)>=ROUNDDOWN(ListeCours[HEURE DE DÉBUT],10))*($B36<=ListeCours[HEURE DE FIN]),ListeCours[UNIQUE]),ListeCours[UNIQUE],0),2),0)","v":0},{"$f":"IFERROR(INDEX(ListeCours[],MATCH(SUMPRODUCT((ListeCours[AGENDA]=EmploiDuTemps[[#Headers],[SAMEDI]])*(ROUNDDOWN($B36,10)>=ROUNDDOWN(ListeCours[HEURE DE DÉBUT],10))*($B36<=ListeCours[HEURE DE FIN]),ListeCours[UNIQUE]),ListeCours[UNIQUE],0),2),0)","v":0},{"$f":"IFERROR(INDEX(ListeCours[],MATCH(SUMPRODUCT((ListeCours[AGENDA]=EmploiDuTemps[[#Headers],[DIMANCHE]])*(ROUNDDOWN($B36,10)>=ROUNDDOWN(ListeCours[HEURE DE DÉBUT],10))*($B36<=ListeCours[HEURE DE FIN]),ListeCours[UNIQUE]),ListeCours[UNIQUE],0),2),0)","v":0}]
[null,{"$f":"B36+Incrément","v":"15:15:00"},{"$f":"IFERROR(INDEX(ListeCours[],MATCH(SUMPRODUCT((ListeCours[AGENDA]=EmploiDuTemps[[#Headers],[LUNDI]])*(ROUNDDOWN($B37,10)>=ROUNDDOWN(ListeCours[HEURE DE DÉBUT],10))*($B37<=ListeCours[HEURE DE FIN]),ListeCours[UNIQUE]),ListeCours[UNIQUE],0),2),0)","v":0},{"$f":"IFERROR(INDEX(ListeCours[],MATCH(SUMPRODUCT((ListeCours[AGENDA]=EmploiDuTemps[[#Headers],[MARDI]])*(ROUNDDOWN($B37,10)>=ROUNDDOWN(ListeCours[HEURE DE DÉBUT],10))*($B37<=ListeCours[HEURE DE FIN]),ListeCours[UNIQUE]),ListeCours[UNIQUE],0),2),0)","v":0},{"$f":"IFERROR(INDEX(ListeCours[],MATCH(SUMPRODUCT((ListeCours[AGENDA]=EmploiDuTemps[[#Headers],[MERCREDI]])*(ROUNDDOWN($B37,10)>=ROUNDDOWN(ListeCours[HEURE DE DÉBUT],10))*($B37<=ListeCours[HEURE DE FIN]),ListeCours[UNIQUE]),ListeCours[UNIQUE],0),2),0)","v":0},{"$f":"IFERROR(INDEX(ListeCours[],MATCH(SUMPRODUCT((ListeCours[AGENDA]=EmploiDuTemps[[#Headers],[JEUDI]])*(ROUNDDOWN($B37,10)>=ROUNDDOWN(ListeCours[HEURE DE DÉBUT],10))*($B37<=ListeCours[HEURE DE FIN]),ListeCours[UNIQUE]),ListeCours[UNIQUE],0),2),0)","v":0},{"$f":"IFERROR(INDEX(ListeCours[],MATCH(SUMPRODUCT((ListeCours[AGENDA]=EmploiDuTemps[[#Headers],[VENDREDI]])*(ROUNDDOWN($B37,10)>=ROUNDDOWN(ListeCours[HEURE DE DÉBUT],10))*($B37<=ListeCours[HEURE DE FIN]),ListeCours[UNIQUE]),ListeCours[UNIQUE],0),2),0)","v":0},{"$f":"IFERROR(INDEX(ListeCours[],MATCH(SUMPRODUCT((ListeCours[AGENDA]=EmploiDuTemps[[#Headers],[SAMEDI]])*(ROUNDDOWN($B37,10)>=ROUNDDOWN(ListeCours[HEURE DE DÉBUT],10))*($B37<=ListeCours[HEURE DE FIN]),ListeCours[UNIQUE]),ListeCours[UNIQUE],0),2),0)","v":0},{"$f":"IFERROR(INDEX(ListeCours[],MATCH(SUMPRODUCT((ListeCours[AGENDA]=EmploiDuTemps[[#Headers],[DIMANCHE]])*(ROUNDDOWN($B37,10)>=ROUNDDOWN(ListeCours[HEURE DE DÉBUT],10))*($B37<=ListeCours[HEURE DE FIN]),ListeCours[UNIQUE]),ListeCours[UNIQUE],0),2),0)","v":0}]
[null,"15:30:00",{"$f":"IFERROR(INDEX(ListeCours[],MATCH(SUMPRODUCT((ListeCours[AGENDA]=EmploiDuTemps[[#Headers],[LUNDI]])*(ROUNDDOWN($B38,10)>=ROUNDDOWN(ListeCours[HEURE DE DÉBUT],10))*($B38<=ListeCours[HEURE DE FIN]),ListeCours[UNIQUE]),ListeCours[UNIQUE],0),2),0)","v":0},{"$f":"IFERROR(INDEX(ListeCours[],MATCH(SUMPRODUCT((ListeCours[AGENDA]=EmploiDuTemps[[#Headers],[MARDI]])*(ROUNDDOWN($B38,10)>=ROUNDDOWN(ListeCours[HEURE DE DÉBUT],10))*($B38<=ListeCours[HEURE DE FIN]),ListeCours[UNIQUE]),ListeCours[UNIQUE],0),2),0)","v":0},{"$f":"IFERROR(INDEX(ListeCours[],MATCH(SUMPRODUCT((ListeCours[AGENDA]=EmploiDuTemps[[#Headers],[MERCREDI]])*(ROUNDDOWN($B38,10)>=ROUNDDOWN(ListeCours[HEURE DE DÉBUT],10))*($B38<=ListeCours[HEURE DE FIN]),ListeCours[UNIQUE]),ListeCours[UNIQUE],0),2),0)","v":0},{"$f":"IFERROR(INDEX(ListeCours[],MATCH(SUMPRODUCT((ListeCours[AGENDA]=EmploiDuTemps[[#Headers],[JEUDI]])*(ROUNDDOWN($B38,10)>=ROUNDDOWN(ListeCours[HEURE DE DÉBUT],10))*($B38<=ListeCours[HEURE DE FIN]),ListeCours[UNIQUE]),ListeCours[UNIQUE],0),2),0)","v":0},{"$f":"IFERROR(INDEX(ListeCours[],MATCH(SUMPRODUCT((ListeCours[AGENDA]=EmploiDuTemps[[#Headers],[VENDREDI]])*(ROUNDDOWN($B38,10)>=ROUNDDOWN(ListeCours[HEURE DE DÉBUT],10))*($B38<=ListeCours[HEURE DE FIN]),ListeCours[UNIQUE]),ListeCours[UNIQUE],0),2),0)","v":0},{"$f":"IFERROR(INDEX(ListeCours[],MATCH(SUMPRODUCT((ListeCours[AGENDA]=EmploiDuTemps[[#Headers],[SAMEDI]])*(ROUNDDOWN($B38,10)>=ROUNDDOWN(ListeCours[HEURE DE DÉBUT],10))*($B38<=ListeCours[HEURE DE FIN]),ListeCours[UNIQUE]),ListeCours[UNIQUE],0),2),0)","v":0},{"$f":"IFERROR(INDEX(ListeCours[],MATCH(SUMPRODUCT((ListeCours[AGENDA]=EmploiDuTemps[[#Headers],[DIMANCHE]])*(ROUNDDOWN($B38,10)>=ROUNDDOWN(ListeCours[HEURE DE DÉBUT],10))*($B38<=ListeCours[HEURE DE FIN]),ListeCours[UNIQUE]),ListeCours[UNIQUE],0),2),0)","v":0}]
[null,"15:45:00",{"$f":"IFERROR(INDEX(ListeCours[],MATCH(SUMPRODUCT((ListeCours[AGENDA]=EmploiDuTemps[[#Headers],[LUNDI]])*(ROUNDDOWN($B39,10)>=ROUNDDOWN(ListeCours[HEURE DE DÉBUT],10))*($B39<=ListeCours[HEURE DE FIN]),ListeCours[UNIQUE]),ListeCours[UNIQUE],0),2),0)","v":0},{"$f":"IFERROR(INDEX(ListeCours[],MATCH(SUMPRODUCT((ListeCours[AGENDA]=EmploiDuTemps[[#Headers],[MARDI]])*(ROUNDDOWN($B39,10)>=ROUNDDOWN(ListeCours[HEURE DE DÉBUT],10))*($B39<=ListeCours[HEURE DE FIN]),ListeCours[UNIQUE]),ListeCours[UNIQUE],0),2),0)","v":0},{"$f":"IFERROR(INDEX(ListeCours[],MATCH(SUMPRODUCT((ListeCours[AGENDA]=EmploiDuTemps[[#Headers],[MERCREDI]])*(ROUNDDOWN($B39,10)>=ROUNDDOWN(ListeCours[HEURE DE DÉBUT],10))*($B39<=ListeCours[HEURE DE FIN]),ListeCours[UNIQUE]),ListeCours[UNIQUE],0),2),0)","v":0},{"$f":"IFERROR(INDEX(ListeCours[],MATCH(SUMPRODUCT((ListeCours[AGENDA]=EmploiDuTemps[[#Headers],[JEUDI]])*(ROUNDDOWN($B39,10)>=ROUNDDOWN(ListeCours[HEURE DE DÉBUT],10))*($B39<=ListeCours[HEURE DE FIN]),ListeCours[UNIQUE]),ListeCours[UNIQUE],0),2),0)","v":0},{"$f":"IFERROR(INDEX(ListeCours[],MATCH(SUMPRODUCT((ListeCours[AGENDA]=EmploiDuTemps[[#Headers],[VENDREDI]])*(ROUNDDOWN($B39,10)>=ROUNDDOWN(ListeCours[HEURE DE DÉBUT],10))*($B39<=ListeCours[HEURE DE FIN]),ListeCours[UNIQUE]),ListeCours[UNIQUE],0),2),0)","v":0},{"$f":"IFERROR(INDEX(ListeCours[],MATCH(SUMPRODUCT((ListeCours[AGENDA]=EmploiDuTemps[[#Headers],[SAMEDI]])*(ROUNDDOWN($B39,10)>=ROUNDDOWN(ListeCours[HEURE DE DÉBUT],10))*($B39<=ListeCours[HEURE DE FIN]),ListeCours[UNIQUE]),ListeCours[UNIQUE],0),2),0)","v":0},{"$f":"IFERROR(INDEX(ListeCours[],MATCH(SUMPRODUCT((ListeCours[AGENDA]=EmploiDuTemps[[#Headers],[DIMANCHE]])*(ROUNDDOWN($B39,10)>=ROUNDDOWN(ListeCours[HEURE DE DÉBUT],10))*($B39<=ListeCours[HEURE DE FIN]),ListeCours[UNIQUE]),ListeCours[UNIQUE],0),2),0)","v":0}]
[null,"16:00:00",{"$f":"IFERROR(INDEX(ListeCours[],MATCH(SUMPRODUCT((ListeCours[AGENDA]=EmploiDuTemps[[#Headers],[LUNDI]])*(ROUNDDOWN($B40,10)>=ROUNDDOWN(ListeCours[HEURE DE DÉBUT],10))*($B40<=ListeCours[HEURE DE FIN]),ListeCours[UNIQUE]),ListeCours[UNIQUE],0),2),0)","v":"HG-111"},{"$f":"IFERROR(INDEX(ListeCours[],MATCH(SUMPRODUCT((ListeCours[AGENDA]=EmploiDuTemps[[#Headers],[MARDI]])*(ROUNDDOWN($B40,10)>=ROUNDDOWN(ListeCours[HEURE DE DÉBUT],10))*($B40<=ListeCours[HEURE DE FIN]),ListeCours[UNIQUE]),ListeCours[UNIQUE],0),2),0)","v":0},{"$f":"IFERROR(INDEX(ListeCours[],MATCH(SUMPRODUCT((ListeCours[AGENDA]=EmploiDuTemps[[#Headers],[MERCREDI]])*(ROUNDDOWN($B40,10)>=ROUNDDOWN(ListeCours[HEURE DE DÉBUT],10))*($B40<=ListeCours[HEURE DE FIN]),ListeCours[UNIQUE]),ListeCours[UNIQUE],0),2),0)","v":0},{"$f":"IFERROR(INDEX(ListeCours[],MATCH(SUMPRODUCT((ListeCours[AGENDA]=EmploiDuTemps[[#Headers],[JEUDI]])*(ROUNDDOWN($B40,10)>=ROUNDDOWN(ListeCours[HEURE DE DÉBUT],10))*($B40<=ListeCours[HEURE DE FIN]),ListeCours[UNIQUE]),ListeCours[UNIQUE],0),2),0)","v":0},{"$f":"IFERROR(INDEX(ListeCours[],MATCH(SUMPRODUCT((ListeCours[AGENDA]=EmploiDuTemps[[#Headers],[VENDREDI]])*(ROUNDDOWN($B40,10)>=ROUNDDOWN(ListeCours[HEURE DE DÉBUT],10))*($B40<=ListeCours[HEURE DE FIN]),ListeCours[UNIQUE]),ListeCours[UNIQUE],0),2),0)","v":0},{"$f":"IFERROR(INDEX(ListeCours[],MATCH(SUMPRODUCT((ListeCours[AGENDA]=EmploiDuTemps[[#Headers],[SAMEDI]])*(ROUNDDOWN($B40,10)>=ROUNDDOWN(ListeCours[HEURE DE DÉBUT],10))*($B40<=ListeCours[HEURE DE FIN]),ListeCours[UNIQUE]),ListeCours[UNIQUE],0),2),0)","v":0},{"$f":"IFERROR(INDEX(ListeCours[],MATCH(SUMPRODUCT((ListeCours[AGENDA]=EmploiDuTemps[[#Headers],[DIMANCHE]])*(ROUNDDOWN($B40,10)>=ROUNDDOWN(ListeCours[HEURE DE DÉBUT],10))*($B40<=ListeCours[HEURE DE FIN]),ListeCours[UNIQUE]),ListeCours[UNIQUE],0),2),0)","v":0}]
[null,"16:15:00",{"$f":"IFERROR(INDEX(ListeCours[],MATCH(SUMPRODUCT((ListeCours[AGENDA]=EmploiDuTemps[[#Headers],[LUNDI]])*(ROUNDDOWN($B41,10)>=ROUNDDOWN(ListeCours[HEURE DE DÉBUT],10))*($B41<=ListeCours[HEURE DE FIN]),ListeCours[UNIQUE]),ListeCours[UNIQUE],0),2),0)","v":"HG-111"},{"$f":"IFERROR(INDEX(ListeCours[],MATCH(SUMPRODUCT((ListeCours[AGENDA]=EmploiDuTemps[[#Headers],[MARDI]])*(ROUNDDOWN($B41,10)>=ROUNDDOWN(ListeCours[HEURE DE DÉBUT],10))*($B41<=ListeCours[HEURE DE FIN]),ListeCours[UNIQUE]),ListeCours[UNIQUE],0),2),0)","v":0},{"$f":"IFERROR(INDEX(ListeCours[],MATCH(SUMPRODUCT((ListeCours[AGENDA]=EmploiDuTemps[[#Headers],[MERCREDI]])*(ROUNDDOWN($B41,10)>=ROUNDDOWN(ListeCours[HEURE DE DÉBUT],10))*($B41<=ListeCours[HEURE DE FIN]),ListeCours[UNIQUE]),ListeCours[UNIQUE],0),2),0)","v":0},{"$f":"IFERROR(INDEX(ListeCours[],MATCH(SUMPRODUCT((ListeCours[AGENDA]=EmploiDuTemps[[#Headers],[JEUDI]])*(ROUNDDOWN($B41,10)>=ROUNDDOWN(ListeCours[HEURE DE DÉBUT],10))*($B41<=ListeCours[HEURE DE FIN]),ListeCours[UNIQUE]),ListeCours[UNIQUE],0),2),0)","v":0},{"$f":"IFERROR(INDEX(ListeCours[],MATCH(SUMPRODUCT((ListeCours[AGENDA]=EmploiDuTemps[[#Headers],[VENDREDI]])*(ROUNDDOWN($B41,10)>=ROUNDDOWN(ListeCours[HEURE DE DÉBUT],10))*($B41<=ListeCours[HEURE DE FIN]),ListeCours[UNIQUE]),ListeCours[UNIQUE],0),2),0)","v":0},{"$f":"IFERROR(INDEX(ListeCours[],MATCH(SUMPRODUCT((ListeCours[AGENDA]=EmploiDuTemps[[#Headers],[SAMEDI]])*(ROUNDDOWN($B41,10)>=ROUNDDOWN(ListeCours[HEURE DE DÉBUT],10))*($B41<=ListeCours[HEURE DE FIN]),ListeCours[UNIQUE]),ListeCours[UNIQUE],0),2),0)","v":0},{"$f":"IFERROR(INDEX(ListeCours[],MATCH(SUMPRODUCT((ListeCours[AGENDA]=EmploiDuTemps[[#Headers],[DIMANCHE]])*(ROUNDDOWN($B41,10)>=ROUNDDOWN(ListeCours[HEURE DE DÉBUT],10))*($B41<=ListeCours[HEURE DE FIN]),ListeCours[UNIQUE]),ListeCours[UNIQUE],0),2),0)","v":0}]
[null,"16:30:00",{"$f":"IFERROR(INDEX(ListeCours[],MATCH(SUMPRODUCT((ListeCours[AGENDA]=EmploiDuTemps[[#Headers],[LUNDI]])*(ROUNDDOWN($B42,10)>=ROUNDDOWN(ListeCours[HEURE DE DÉBUT],10))*($B42<=ListeCours[HEURE DE FIN]),ListeCours[UNIQUE]),ListeCours[UNIQUE],0),2),0)","v":"HG-111"},{"$f":"IFERROR(INDEX(ListeCours[],MATCH(SUMPRODUCT((ListeCours[AGENDA]=EmploiDuTemps[[#Headers],[MARDI]])*(ROUNDDOWN($B42,10)>=ROUNDDOWN(ListeCours[HEURE DE DÉBUT],10))*($B42<=ListeCours[HEURE DE FIN]),ListeCours[UNIQUE]),ListeCours[UNIQUE],0),2),0)","v":0},{"$f":"IFERROR(INDEX(ListeCours[],MATCH(SUMPRODUCT((ListeCours[AGENDA]=EmploiDuTemps[[#Headers],[MERCREDI]])*(ROUNDDOWN($B42,10)>=ROUNDDOWN(ListeCours[HEURE DE DÉBUT],10))*($B42<=ListeCours[HEURE DE FIN]),ListeCours[UNIQUE]),ListeCours[UNIQUE],0),2),0)","v":0},{"$f":"IFERROR(INDEX(ListeCours[],MATCH(SUMPRODUCT((ListeCours[AGENDA]=EmploiDuTemps[[#Headers],[JEUDI]])*(ROUNDDOWN($B42,10)>=ROUNDDOWN(ListeCours[HEURE DE DÉBUT],10))*($B42<=ListeCours[HEURE DE FIN]),ListeCours[UNIQUE]),ListeCours[UNIQUE],0),2),0)","v":0},{"$f":"IFERROR(INDEX(ListeCours[],MATCH(SUMPRODUCT((ListeCours[AGENDA]=EmploiDuTemps[[#Headers],[VENDREDI]])*(ROUNDDOWN($B42,10)>=ROUNDDOWN(ListeCours[HEURE DE DÉBUT],10))*($B42<=ListeCours[HEURE DE FIN]),ListeCours[UNIQUE]),ListeCours[UNIQUE],0),2),0)","v":0},{"$f":"IFERROR(INDEX(ListeCours[],MATCH(SUMPRODUCT((ListeCours[AGENDA]=EmploiDuTemps[[#Headers],[SAMEDI]])*(ROUNDDOWN($B42,10)>=ROUNDDOWN(ListeCours[HEURE DE DÉBUT],10))*($B42<=ListeCours[HEURE DE FIN]),ListeCours[UNIQUE]),ListeCours[UNIQUE],0),2),0)","v":0},{"$f":"IFERROR(INDEX(ListeCours[],MATCH(SUMPRODUCT((ListeCours[AGENDA]=EmploiDuTemps[[#Headers],[DIMANCHE]])*(ROUNDDOWN($B42,10)>=ROUNDDOWN(ListeCours[HEURE DE DÉBUT],10))*($B42<=ListeCours[HEURE DE FIN]),ListeCours[UNIQUE]),ListeCours[UNIQUE],0),2),0)","v":0}]
[null,"16:45:00",{"$f":"IFERROR(INDEX(ListeCours[],MATCH(SUMPRODUCT((ListeCours[AGENDA]=EmploiDuTemps[[#Headers],[LUNDI]])*(ROUNDDOWN($B43,10)>=ROUNDDOWN(ListeCours[HEURE DE DÉBUT],10))*($B43<=ListeCours[HEURE DE FIN]),ListeCours[UNIQUE]),ListeCours[UNIQUE],0),2),0)","v":"HG-111"},{"$f":"IFERROR(INDEX(ListeCours[],MATCH(SUMPRODUCT((ListeCours[AGENDA]=EmploiDuTemps[[#Headers],[MARDI]])*(ROUNDDOWN($B43,10)>=ROUNDDOWN(ListeCours[HEURE DE DÉBUT],10))*($B43<=ListeCours[HEURE DE FIN]),ListeCours[UNIQUE]),ListeCours[UNIQUE],0),2),0)","v":0},{"$f":"IFERROR(INDEX(ListeCours[],MATCH(SUMPRODUCT((ListeCours[AGENDA]=EmploiDuTemps[[#Headers],[MERCREDI]])*(ROUNDDOWN($B43,10)>=ROUNDDOWN(ListeCours[HEURE DE DÉBUT],10))*($B43<=ListeCours[HEURE DE FIN]),ListeCours[UNIQUE]),ListeCours[UNIQUE],0),2),0)","v":0},{"$f":"IFERROR(INDEX(ListeCours[],MATCH(SUMPRODUCT((ListeCours[AGENDA]=EmploiDuTemps[[#Headers],[JEUDI]])*(ROUNDDOWN($B43,10)>=ROUNDDOWN(ListeCours[HEURE DE DÉBUT],10))*($B43<=ListeCours[HEURE DE FIN]),ListeCours[UNIQUE]),ListeCours[UNIQUE],0),2),0)","v":0},{"$f":"IFERROR(INDEX(ListeCours[],MATCH(SUMPRODUCT((ListeCours[AGENDA]=EmploiDuTemps[[#Headers],[VENDREDI]])*(ROUNDDOWN($B43,10)>=ROUNDDOWN(ListeCours[HEURE DE DÉBUT],10))*($B43<=ListeCours[HEURE DE FIN]),ListeCours[UNIQUE]),ListeCours[UNIQUE],0),2),0)","v":0},{"$f":"IFERROR(INDEX(ListeCours[],MATCH(SUMPRODUCT((ListeCours[AGENDA]=EmploiDuTemps[[#Headers],[SAMEDI]])*(ROUNDDOWN($B43,10)>=ROUNDDOWN(ListeCours[HEURE DE DÉBUT],10))*($B43<=ListeCours[HEURE DE FIN]),ListeCours[UNIQUE]),ListeCours[UNIQUE],0),2),0)","v":0},{"$f":"IFERROR(INDEX(ListeCours[],MATCH(SUMPRODUCT((ListeCours[AGENDA]=EmploiDuTemps[[#Headers],[DIMANCHE]])*(ROUNDDOWN($B43,10)>=ROUNDDOWN(ListeCours[HEURE DE DÉBUT],10))*($B43<=ListeCours[HEURE DE FIN]),ListeCours[UNIQUE]),ListeCours[UNIQUE],0),2),0)","v":0}]
[null,"17:00:00",{"$f":"IFERROR(INDEX(ListeCours[],MATCH(SUMPRODUCT((ListeCours[AGENDA]=EmploiDuTemps[[#Headers],[LUNDI]])*(ROUNDDOWN($B44,10)>=ROUNDDOWN(ListeCours[HEURE DE DÉBUT],10))*($B44<=ListeCours[HEURE DE FIN]),ListeCours[UNIQUE]),ListeCours[UNIQUE],0),2),0)","v":"HG-111"},{"$f":"IFERROR(INDEX(ListeCours[],MATCH(SUMPRODUCT((ListeCours[AGENDA]=EmploiDuTemps[[#Headers],[MARDI]])*(ROUNDDOWN($B44,10)>=ROUNDDOWN(ListeCours[HEURE DE DÉBUT],10))*($B44<=ListeCours[HEURE DE FIN]),ListeCours[UNIQUE]),ListeCours[UNIQUE],0),2),0)","v":0},{"$f":"IFERROR(INDEX(ListeCours[],MATCH(SUMPRODUCT((ListeCours[AGENDA]=EmploiDuTemps[[#Headers],[MERCREDI]])*(ROUNDDOWN($B44,10)>=ROUNDDOWN(ListeCours[HEURE DE DÉBUT],10))*($B44<=ListeCours[HEURE DE FIN]),ListeCours[UNIQUE]),ListeCours[UNIQUE],0),2),0)","v":0},{"$f":"IFERROR(INDEX(ListeCours[],MATCH(SUMPRODUCT((ListeCours[AGENDA]=EmploiDuTemps[[#Headers],[JEUDI]])*(ROUNDDOWN($B44,10)>=ROUNDDOWN(ListeCours[HEURE DE DÉBUT],10))*($B44<=ListeCours[HEURE DE FIN]),ListeCours[UNIQUE]),ListeCours[UNIQUE],0),2),0)","v":0},{"$f":"IFERROR(INDEX(ListeCours[],MATCH(SUMPRODUCT((ListeCours[AGENDA]=EmploiDuTemps[[#Headers],[VENDREDI]])*(ROUNDDOWN($B44,10)>=ROUNDDOWN(ListeCours[HEURE DE DÉBUT],10))*($B44<=ListeCours[HEURE DE FIN]),ListeCours[UNIQUE]),ListeCours[UNIQUE],0),2),0)","v":0},{"$f":"IFERROR(INDEX(ListeCours[],MATCH(SUMPRODUCT((ListeCours[AGENDA]=EmploiDuTemps[[#Headers],[SAMEDI]])*(ROUNDDOWN($B44,10)>=ROUNDDOWN(ListeCours[HEURE DE DÉBUT],10))*($B44<=ListeCours[HEURE DE FIN]),ListeCours[UNIQUE]),ListeCours[UNIQUE],0),2),0)","v":0},{"$f":"IFERROR(INDEX(ListeCours[],MATCH(SUMPRODUCT((ListeCours[AGENDA]=EmploiDuTemps[[#Headers],[DIMANCHE]])*(ROUNDDOWN($B44,10)>=ROUNDDOWN(ListeCours[HEURE DE DÉBUT],10))*($B44<=ListeCours[HEURE DE FIN]),ListeCours[UNIQUE]),ListeCours[UNIQUE],0),2),0)","v":0}]
[null,"17:15:00",{"$f":"IFERROR(INDEX(ListeCours[],MATCH(SUMPRODUCT((ListeCours[AGENDA]=EmploiDuTemps[[#Headers],[LUNDI]])*(ROUNDDOWN($B45,10)>=ROUNDDOWN(ListeCours[HEURE DE DÉBUT],10))*($B45<=ListeCours[HEURE DE FIN]),ListeCours[UNIQUE]),ListeCours[UNIQUE],0),2),0)","v":0},{"$f":"IFERROR(INDEX(ListeCours[],MATCH(SUMPRODUCT((ListeCours[AGENDA]=EmploiDuTemps[[#Headers],[MARDI]])*(ROUNDDOWN($B45,10)>=ROUNDDOWN(ListeCours[HEURE DE DÉBUT],10))*($B45<=ListeCours[HEURE DE FIN]),ListeCours[UNIQUE]),ListeCours[UNIQUE],0),2),0)","v":0},{"$f":"IFERROR(INDEX(ListeCours[],MATCH(SUMPRODUCT((ListeCours[AGENDA]=EmploiDuTemps[[#Headers],[MERCREDI]])*(ROUNDDOWN($B45,10)>=ROUNDDOWN(ListeCours[HEURE DE DÉBUT],10))*($B45<=ListeCours[HEURE DE FIN]),ListeCours[UNIQUE]),ListeCours[UNIQUE],0),2),0)","v":0},{"$f":"IFERROR(INDEX(ListeCours[],MATCH(SUMPRODUCT((ListeCours[AGENDA]=EmploiDuTemps[[#Headers],[JEUDI]])*(ROUNDDOWN($B45,10)>=ROUNDDOWN(ListeCours[HEURE DE DÉBUT],10))*($B45<=ListeCours[HEURE DE FIN]),ListeCours[UNIQUE]),ListeCours[UNIQUE],0),2),0)","v":0},{"$f":"IFERROR(INDEX(ListeCours[],MATCH(SUMPRODUCT((ListeCours[AGENDA]=EmploiDuTemps[[#Headers],[VENDREDI]])*(ROUNDDOWN($B45,10)>=ROUNDDOWN(ListeCours[HEURE DE DÉBUT],10))*($B45<=ListeCours[HEURE DE FIN]),ListeCours[UNIQUE]),ListeCours[UNIQUE],0),2),0)","v":0},{"$f":"IFERROR(INDEX(ListeCours[],MATCH(SUMPRODUCT((ListeCours[AGENDA]=EmploiDuTemps[[#Headers],[SAMEDI]])*(ROUNDDOWN($B45,10)>=ROUNDDOWN(ListeCours[HEURE DE DÉBUT],10))*($B45<=ListeCours[HEURE DE FIN]),ListeCours[UNIQUE]),ListeCours[UNIQUE],0),2),0)","v":0},{"$f":"IFERROR(INDEX(ListeCours[],MATCH(SUMPRODUCT((ListeCours[AGENDA]=EmploiDuTemps[[#Headers],[DIMANCHE]])*(ROUNDDOWN($B45,10)>=ROUNDDOWN(ListeCours[HEURE DE DÉBUT],10))*($B45<=ListeCours[HEURE DE FIN]),ListeCours[UNIQUE]),ListeCours[UNIQUE],0),2),0)","v":0}]
[null,"17:30:00",{"$f":"IFERROR(INDEX(ListeCours[],MATCH(SUMPRODUCT((ListeCours[AGENDA]=EmploiDuTemps[[#Headers],[LUNDI]])*(ROUNDDOWN($B46,10)>=ROUNDDOWN(ListeCours[HEURE DE DÉBUT],10))*($B46<=ListeCours[HEURE DE FIN]),ListeCours[UNIQUE]),ListeCours[UNIQUE],0),2),0)","v":0},{"$f":"IFERROR(INDEX(ListeCours[],MATCH(SUMPRODUCT((ListeCours[AGENDA]=EmploiDuTemps[[#Headers],[MARDI]])*(ROUNDDOWN($B46,10)>=ROUNDDOWN(ListeCours[HEURE DE DÉBUT],10))*($B46<=ListeCours[HEURE DE FIN]),ListeCours[UNIQUE]),ListeCours[UNIQUE],0),2),0)","v":0},{"$f":"IFERROR(INDEX(ListeCours[],MATCH(SUMPRODUCT((ListeCours[AGENDA]=EmploiDuTemps[[#Headers],[MERCREDI]])*(ROUNDDOWN($B46,10)>=ROUNDDOWN(ListeCours[HEURE DE DÉBUT],10))*($B46<=ListeCours[HEURE DE FIN]),ListeCours[UNIQUE]),ListeCours[UNIQUE],0),2),0)","v":0},{"$f":"IFERROR(INDEX(ListeCours[],MATCH(SUMPRODUCT((ListeCours[AGENDA]=EmploiDuTemps[[#Headers],[JEUDI]])*(ROUNDDOWN($B46,10)>=ROUNDDOWN(ListeCours[HEURE DE DÉBUT],10))*($B46<=ListeCours[HEURE DE FIN]),ListeCours[UNIQUE]),ListeCours[UNIQUE],0),2),0)","v":0},{"$f":"IFERROR(INDEX(ListeCours[],MATCH(SUMPRODUCT((ListeCours[AGENDA]=EmploiDuTemps[[#Headers],[VENDREDI]])*(ROUNDDOWN($B46,10)>=ROUNDDOWN(ListeCours[HEURE DE DÉBUT],10))*($B46<=ListeCours[HEURE DE FIN]),ListeCours[UNIQUE]),ListeCours[UNIQUE],0),2),0)","v":0},{"$f":"IFERROR(INDEX(ListeCours[],MATCH(SUMPRODUCT((ListeCours[AGENDA]=EmploiDuTemps[[#Headers],[SAMEDI]])*(ROUNDDOWN($B46,10)>=ROUNDDOWN(ListeCours[HEURE DE DÉBUT],10))*($B46<=ListeCours[HEURE DE FIN]),ListeCours[UNIQUE]),ListeCours[UNIQUE],0),2),0)","v":0},{"$f":"IFERROR(INDEX(ListeCours[],MATCH(SUMPRODUCT((ListeCours[AGENDA]=EmploiDuTemps[[#Headers],[DIMANCHE]])*(ROUNDDOWN($B46,10)>=ROUNDDOWN(ListeCours[HEURE DE DÉBUT],10))*($B46<=ListeCours[HEURE DE FIN]),ListeCours[UNIQUE]),ListeCours[UNIQUE],0),2),0)","v":0}]
[null,"17:45:00",{"$f":"IFERROR(INDEX(ListeCours[],MATCH(SUMPRODUCT((ListeCours[AGENDA]=EmploiDuTemps[[#Headers],[LUNDI]])*(ROUNDDOWN($B47,10)>=ROUNDDOWN(ListeCours[HEURE DE DÉBUT],10))*($B47<=ListeCours[HEURE DE FIN]),ListeCours[UNIQUE]),ListeCours[UNIQUE],0),2),0)","v":0},{"$f":"IFERROR(INDEX(ListeCours[],MATCH(SUMPRODUCT((ListeCours[AGENDA]=EmploiDuTemps[[#Headers],[MARDI]])*(ROUNDDOWN($B47,10)>=ROUNDDOWN(ListeCours[HEURE DE DÉBUT],10))*($B47<=ListeCours[HEURE DE FIN]),ListeCours[UNIQUE]),ListeCours[UNIQUE],0),2),0)","v":0},{"$f":"IFERROR(INDEX(ListeCours[],MATCH(SUMPRODUCT((ListeCours[AGENDA]=EmploiDuTemps[[#Headers],[MERCREDI]])*(ROUNDDOWN($B47,10)>=ROUNDDOWN(ListeCours[HEURE DE DÉBUT],10))*($B47<=ListeCours[HEURE DE FIN]),ListeCours[UNIQUE]),ListeCours[UNIQUE],0),2),0)","v":0},{"$f":"IFERROR(INDEX(ListeCours[],MATCH(SUMPRODUCT((ListeCours[AGENDA]=EmploiDuTemps[[#Headers],[JEUDI]])*(ROUNDDOWN($B47,10)>=ROUNDDOWN(ListeCours[HEURE DE DÉBUT],10))*($B47<=ListeCours[HEURE DE FIN]),ListeCours[UNIQUE]),ListeCours[UNIQUE],0),2),0)","v":0},{"$f":"IFERROR(INDEX(ListeCours[],MATCH(SUMPRODUCT((ListeCours[AGENDA]=EmploiDuTemps[[#Headers],[VENDREDI]])*(ROUNDDOWN($B47,10)>=ROUNDDOWN(ListeCours[HEURE DE DÉBUT],10))*($B47<=ListeCours[HEURE DE FIN]),ListeCours[UNIQUE]),ListeCours[UNIQUE],0),2),0)","v":0},{"$f":"IFERROR(INDEX(ListeCours[],MATCH(SUMPRODUCT((ListeCours[AGENDA]=EmploiDuTemps[[#Headers],[SAMEDI]])*(ROUNDDOWN($B47,10)>=ROUNDDOWN(ListeCours[HEURE DE DÉBUT],10))*($B47<=ListeCours[HEURE DE FIN]),ListeCours[UNIQUE]),ListeCours[UNIQUE],0),2),0)","v":0},{"$f":"IFERROR(INDEX(ListeCours[],MATCH(SUMPRODUCT((ListeCours[AGENDA]=EmploiDuTemps[[#Headers],[DIMANCHE]])*(ROUNDDOWN($B47,10)>=ROUNDDOWN(ListeCours[HEURE DE DÉBUT],10))*($B47<=ListeCours[HEURE DE FIN]),ListeCours[UNIQUE]),ListeCours[UNIQUE],0),2),0)","v":0}]
[null,"18:00:00",{"$f":"IFERROR(INDEX(ListeCours[],MATCH(SUMPRODUCT((ListeCours[AGENDA]=EmploiDuTemps[[#Headers],[LUNDI]])*(ROUNDDOWN($B48,10)>=ROUNDDOWN(ListeCours[HEURE DE DÉBUT],10))*($B48<=ListeCours[HEURE DE FIN]),ListeCours[UNIQUE]),ListeCours[UNIQUE],0),2),0)","v":0},{"$f":"IFERROR(INDEX(ListeCours[],MATCH(SUMPRODUCT((ListeCours[AGENDA]=EmploiDuTemps[[#Headers],[MARDI]])*(ROUNDDOWN($B48,10)>=ROUNDDOWN(ListeCours[HEURE DE DÉBUT],10))*($B48<=ListeCours[HEURE DE FIN]),ListeCours[UNIQUE]),ListeCours[UNIQUE],0),2),0)","v":0},{"$f":"IFERROR(INDEX(ListeCours[],MATCH(SUMPRODUCT((ListeCours[AGENDA]=EmploiDuTemps[[#Headers],[MERCREDI]])*(ROUNDDOWN($B48,10)>=ROUNDDOWN(ListeCours[HEURE DE DÉBUT],10))*($B48<=ListeCours[HEURE DE FIN]),ListeCours[UNIQUE]),ListeCours[UNIQUE],0),2),0)","v":0},{"$f":"IFERROR(INDEX(ListeCours[],MATCH(SUMPRODUCT((ListeCours[AGENDA]=EmploiDuTemps[[#Headers],[JEUDI]])*(ROUNDDOWN($B48,10)>=ROUNDDOWN(ListeCours[HEURE DE DÉBUT],10))*($B48<=ListeCours[HEURE DE FIN]),ListeCours[UNIQUE]),ListeCours[UNIQUE],0),2),0)","v":0},{"$f":"IFERROR(INDEX(ListeCours[],MATCH(SUMPRODUCT((ListeCours[AGENDA]=EmploiDuTemps[[#Headers],[VENDREDI]])*(ROUNDDOWN($B48,10)>=ROUNDDOWN(ListeCours[HEURE DE DÉBUT],10))*($B48<=ListeCours[HEURE DE FIN]),ListeCours[UNIQUE]),ListeCours[UNIQUE],0),2),0)","v":0},{"$f":"IFERROR(INDEX(ListeCours[],MATCH(SUMPRODUCT((ListeCours[AGENDA]=EmploiDuTemps[[#Headers],[SAMEDI]])*(ROUNDDOWN($B48,10)>=ROUNDDOWN(ListeCours[HEURE DE DÉBUT],10))*($B48<=ListeCours[HEURE DE FIN]),ListeCours[UNIQUE]),ListeCours[UNIQUE],0),2),0)","v":0},{"$f":"IFERROR(INDEX(ListeCours[],MATCH(SUMPRODUCT((ListeCours[AGENDA]=EmploiDuTemps[[#Headers],[DIMANCHE]])*(ROUNDDOWN($B48,10)>=ROUNDDOWN(ListeCours[HEURE DE DÉBUT],10))*($B48<=ListeCours[HEURE DE FIN]),ListeCours[UNIQUE]),ListeCours[UNIQUE],0),2),0)","v":0}]
[null,"18:15:00",{"$f":"IFERROR(INDEX(ListeCours[],MATCH(SUMPRODUCT((ListeCours[AGENDA]=EmploiDuTemps[[#Headers],[LUNDI]])*(ROUNDDOWN($B49,10)>=ROUNDDOWN(ListeCours[HEURE DE DÉBUT],10))*($B49<=ListeCours[HEURE DE FIN]),ListeCours[UNIQUE]),ListeCours[UNIQUE],0),2),0)","v":0},{"$f":"IFERROR(INDEX(ListeCours[],MATCH(SUMPRODUCT((ListeCours[AGENDA]=EmploiDuTemps[[#Headers],[MARDI]])*(ROUNDDOWN($B49,10)>=ROUNDDOWN(ListeCours[HEURE DE DÉBUT],10))*($B49<=ListeCours[HEURE DE FIN]),ListeCours[UNIQUE]),ListeCours[UNIQUE],0),2),0)","v":0},{"$f":"IFERROR(INDEX(ListeCours[],MATCH(SUMPRODUCT((ListeCours[AGENDA]=EmploiDuTemps[[#Headers],[MERCREDI]])*(ROUNDDOWN($B49,10)>=ROUNDDOWN(ListeCours[HEURE DE DÉBUT],10))*($B49<=ListeCours[HEURE DE FIN]),ListeCours[UNIQUE]),ListeCours[UNIQUE],0),2),0)","v":0},{"$f":"IFERROR(INDEX(ListeCours[],MATCH(SUMPRODUCT((ListeCours[AGENDA]=EmploiDuTemps[[#Headers],[JEUDI]])*(ROUNDDOWN($B49,10)>=ROUNDDOWN(ListeCours[HEURE DE DÉBUT],10))*($B49<=ListeCours[HEURE DE FIN]),ListeCours[UNIQUE]),ListeCours[UNIQUE],0),2),0)","v":0},{"$f":"IFERROR(INDEX(ListeCours[],MATCH(SUMPRODUCT((ListeCours[AGENDA]=EmploiDuTemps[[#Headers],[VENDREDI]])*(ROUNDDOWN($B49,10)>=ROUNDDOWN(ListeCours[HEURE DE DÉBUT],10))*($B49<=ListeCours[HEURE DE FIN]),ListeCours[UNIQUE]),ListeCours[UNIQUE],0),2),0)","v":0},{"$f":"IFERROR(INDEX(ListeCours[],MATCH(SUMPRODUCT((ListeCours[AGENDA]=EmploiDuTemps[[#Headers],[SAMEDI]])*(ROUNDDOWN($B49,10)>=ROUNDDOWN(ListeCours[HEURE DE DÉBUT],10))*($B49<=ListeCours[HEURE DE FIN]),ListeCours[UNIQUE]),ListeCours[UNIQUE],0),2),0)","v":0},{"$f":"IFERROR(INDEX(ListeCours[],MATCH(SUMPRODUCT((ListeCours[AGENDA]=EmploiDuTemps[[#Headers],[DIMANCHE]])*(ROUNDDOWN($B49,10)>=ROUNDDOWN(ListeCours[HEURE DE DÉBUT],10))*($B49<=ListeCours[HEURE DE FIN]),ListeCours[UNIQUE]),ListeCours[UNIQUE],0),2),0)","v":0}]
[null,"18:30:00",{"$f":"IFERROR(INDEX(ListeCours[],MATCH(SUMPRODUCT((ListeCours[AGENDA]=EmploiDuTemps[[#Headers],[LUNDI]])*(ROUNDDOWN($B50,10)>=ROUNDDOWN(ListeCours[HEURE DE DÉBUT],10))*($B50<=ListeCours[HEURE DE FIN]),ListeCours[UNIQUE]),ListeCours[UNIQUE],0),2),0)","v":0},{"$f":"IFERROR(INDEX(ListeCours[],MATCH(SUMPRODUCT((ListeCours[AGENDA]=EmploiDuTemps[[#Headers],[MARDI]])*(ROUNDDOWN($B50,10)>=ROUNDDOWN(ListeCours[HEURE DE DÉBUT],10))*($B50<=ListeCours[HEURE DE FIN]),ListeCours[UNIQUE]),ListeCours[UNIQUE],0),2),0)","v":0},{"$f":"IFERROR(INDEX(ListeCours[],MATCH(SUMPRODUCT((ListeCours[AGENDA]=EmploiDuTemps[[#Headers],[MERCREDI]])*(ROUNDDOWN($B50,10)>=ROUNDDOWN(ListeCours[HEURE DE DÉBUT],10))*($B50<=ListeCours[HEURE DE FIN]),ListeCours[UNIQUE]),ListeCours[UNIQUE],0),2),0)","v":0},{"$f":"IFERROR(INDEX(ListeCours[],MATCH(SUMPRODUCT((ListeCours[AGENDA]=EmploiDuTemps[[#Headers],[JEUDI]])*(ROUNDDOWN($B50,10)>=ROUNDDOWN(ListeCours[HEURE DE DÉBUT],10))*($B50<=ListeCours[HEURE DE FIN]),ListeCours[UNIQUE]),ListeCours[UNIQUE],0),2),0)","v":0},{"$f":"IFERROR(INDEX(ListeCours[],MATCH(SUMPRODUCT((ListeCours[AGENDA]=EmploiDuTemps[[#Headers],[VENDREDI]])*(ROUNDDOWN($B50,10)>=ROUNDDOWN(ListeCours[HEURE DE DÉBUT],10))*($B50<=ListeCours[HEURE DE FIN]),ListeCours[UNIQUE]),ListeCours[UNIQUE],0),2),0)","v":0},{"$f":"IFERROR(INDEX(ListeCours[],MATCH(SUMPRODUCT((ListeCours[AGENDA]=EmploiDuTemps[[#Headers],[SAMEDI]])*(ROUNDDOWN($B50,10)>=ROUNDDOWN(ListeCours[HEURE DE DÉBUT],10))*($B50<=ListeCours[HEURE DE FIN]),ListeCours[UNIQUE]),ListeCours[UNIQUE],0),2),0)","v":0},{"$f":"IFERROR(INDEX(ListeCours[],MATCH(SUMPRODUCT((ListeCours[AGENDA]=EmploiDuTemps[[#Headers],[DIMANCHE]])*(ROUNDDOWN($B50,10)>=ROUNDDOWN(ListeCours[HEURE DE DÉBUT],10))*($B50<=ListeCours[HEURE DE FIN]),ListeCours[UNIQUE]),ListeCours[UNIQUE],0),2),0)","v":0}]
[null,"18:45:00",{"$f":"IFERROR(INDEX(ListeCours[],MATCH(SUMPRODUCT((ListeCours[AGENDA]=EmploiDuTemps[[#Headers],[LUNDI]])*(ROUNDDOWN($B51,10)>=ROUNDDOWN(ListeCours[HEURE DE DÉBUT],10))*($B51<=ListeCours[HEURE DE FIN]),ListeCours[UNIQUE]),ListeCours[UNIQUE],0),2),0)","v":0},{"$f":"IFERROR(INDEX(ListeCours[],MATCH(SUMPRODUCT((ListeCours[AGENDA]=EmploiDuTemps[[#Headers],[MARDI]])*(ROUNDDOWN($B51,10)>=ROUNDDOWN(ListeCours[HEURE DE DÉBUT],10))*($B51<=ListeCours[HEURE DE FIN]),ListeCours[UNIQUE]),ListeCours[UNIQUE],0),2),0)","v":0},{"$f":"IFERROR(INDEX(ListeCours[],MATCH(SUMPRODUCT((ListeCours[AGENDA]=EmploiDuTemps[[#Headers],[MERCREDI]])*(ROUNDDOWN($B51,10)>=ROUNDDOWN(ListeCours[HEURE DE DÉBUT],10))*($B51<=ListeCours[HEURE DE FIN]),ListeCours[UNIQUE]),ListeCours[UNIQUE],0),2),0)","v":0},{"$f":"IFERROR(INDEX(ListeCours[],MATCH(SUMPRODUCT((ListeCours[AGENDA]=EmploiDuTemps[[#Headers],[JEUDI]])*(ROUNDDOWN($B51,10)>=ROUNDDOWN(ListeCours[HEURE DE DÉBUT],10))*($B51<=ListeCours[HEURE DE FIN]),ListeCours[UNIQUE]),ListeCours[UNIQUE],0),2),0)","v":0},{"$f":"IFERROR(INDEX(ListeCours[],MATCH(SUMPRODUCT((ListeCours[AGENDA]=EmploiDuTemps[[#Headers],[VENDREDI]])*(ROUNDDOWN($B51,10)>=ROUNDDOWN(ListeCours[HEURE DE DÉBUT],10))*($B51<=ListeCours[HEURE DE FIN]),ListeCours[UNIQUE]),ListeCours[UNIQUE],0),2),0)","v":0},{"$f":"IFERROR(INDEX(ListeCours[],MATCH(SUMPRODUCT((ListeCours[AGENDA]=EmploiDuTemps[[#Headers],[SAMEDI]])*(ROUNDDOWN($B51,10)>=ROUNDDOWN(ListeCours[HEURE DE DÉBUT],10))*($B51<=ListeCours[HEURE DE FIN]),ListeCours[UNIQUE]),ListeCours[UNIQUE],0),2),0)","v":0},{"$f":"IFERROR(INDEX(ListeCours[],MATCH(SUMPRODUCT((ListeCours[AGENDA]=EmploiDuTemps[[#Headers],[DIMANCHE]])*(ROUNDDOWN($B51,10)>=ROUNDDOWN(ListeCours[HEURE DE DÉBUT],10))*($B51<=ListeCours[HEURE DE FIN]),ListeCours[UNIQUE]),ListeCours[UNIQUE],0),2),0)","v":0}]
[null,"19:00:00",{"$f":"IFERROR(INDEX(ListeCours[],MATCH(SUMPRODUCT((ListeCours[AGENDA]=EmploiDuTemps[[#Headers],[LUNDI]])*(ROUNDDOWN($B52,10)>=ROUNDDOWN(ListeCours[HEURE DE DÉBUT],10))*($B52<=ListeCours[HEURE DE FIN]),ListeCours[UNIQUE]),ListeCours[UNIQUE],0),2),0)","v":0},{"$f":"IFERROR(INDEX(ListeCours[],MATCH(SUMPRODUCT((ListeCours[AGENDA]=EmploiDuTemps[[#Headers],[MARDI]])*(ROUNDDOWN($B52,10)>=ROUNDDOWN(ListeCours[HEURE DE DÉBUT],10))*($B52<=ListeCours[HEURE DE FIN]),ListeCours[UNIQUE]),ListeCours[UNIQUE],0),2),0)","v":0},{"$f":"IFERROR(INDEX(ListeCours[],MATCH(SUMPRODUCT((ListeCours[AGENDA]=EmploiDuTemps[[#Headers],[MERCREDI]])*(ROUNDDOWN($B52,10)>=ROUNDDOWN(ListeCours[HEURE DE DÉBUT],10))*($B52<=ListeCours[HEURE DE FIN]),ListeCours[UNIQUE]),ListeCours[UNIQUE],0),2),0)","v":0},{"$f":"IFERROR(INDEX(ListeCours[],MATCH(SUMPRODUCT((ListeCours[AGENDA]=EmploiDuTemps[[#Headers],[JEUDI]])*(ROUNDDOWN($B52,10)>=ROUNDDOWN(ListeCours[HEURE DE DÉBUT],10))*($B52<=ListeCours[HEURE DE FIN]),ListeCours[UNIQUE]),ListeCours[UNIQUE],0),2),0)","v":0},{"$f":"IFERROR(INDEX(ListeCours[],MATCH(SUMPRODUCT((ListeCours[AGENDA]=EmploiDuTemps[[#Headers],[VENDREDI]])*(ROUNDDOWN($B52,10)>=ROUNDDOWN(ListeCours[HEURE DE DÉBUT],10))*($B52<=ListeCours[HEURE DE FIN]),ListeCours[UNIQUE]),ListeCours[UNIQUE],0),2),0)","v":0},{"$f":"IFERROR(INDEX(ListeCours[],MATCH(SUMPRODUCT((ListeCours[AGENDA]=EmploiDuTemps[[#Headers],[SAMEDI]])*(ROUNDDOWN($B52,10)>=ROUNDDOWN(ListeCours[HEURE DE DÉBUT],10))*($B52<=ListeCours[HEURE DE FIN]),ListeCours[UNIQUE]),ListeCours[UNIQUE],0),2),0)","v":0},{"$f":"IFERROR(INDEX(ListeCours[],MATCH(SUMPRODUCT((ListeCours[AGENDA]=EmploiDuTemps[[#Headers],[DIMANCHE]])*(ROUNDDOWN($B52,10)>=ROUNDDOWN(ListeCours[HEURE DE DÉBUT],10))*($B52<=ListeCours[HEURE DE FIN]),ListeCours[UNIQUE]),ListeCours[UNIQUE],0),2),0)","v":0}]
[null,"19:15:00",{"$f":"IFERROR(INDEX(ListeCours[],MATCH(SUMPRODUCT((ListeCours[AGENDA]=EmploiDuTemps[[#Headers],[LUNDI]])*(ROUNDDOWN($B53,10)>=ROUNDDOWN(ListeCours[HEURE DE DÉBUT],10))*($B53<=ListeCours[HEURE DE FIN]),ListeCours[UNIQUE]),ListeCours[UNIQUE],0),2),0)","v":0},{"$f":"IFERROR(INDEX(ListeCours[],MATCH(SUMPRODUCT((ListeCours[AGENDA]=EmploiDuTemps[[#Headers],[MARDI]])*(ROUNDDOWN($B53,10)>=ROUNDDOWN(ListeCours[HEURE DE DÉBUT],10))*($B53<=ListeCours[HEURE DE FIN]),ListeCours[UNIQUE]),ListeCours[UNIQUE],0),2),0)","v":0},{"$f":"IFERROR(INDEX(ListeCours[],MATCH(SUMPRODUCT((ListeCours[AGENDA]=EmploiDuTemps[[#Headers],[MERCREDI]])*(ROUNDDOWN($B53,10)>=ROUNDDOWN(ListeCours[HEURE DE DÉBUT],10))*($B53<=ListeCours[HEURE DE FIN]),ListeCours[UNIQUE]),ListeCours[UNIQUE],0),2),0)","v":0},{"$f":"IFERROR(INDEX(ListeCours[],MATCH(SUMPRODUCT((ListeCours[AGENDA]=EmploiDuTemps[[#Headers],[JEUDI]])*(ROUNDDOWN($B53,10)>=ROUNDDOWN(ListeCours[HEURE DE DÉBUT],10))*($B53<=ListeCours[HEURE DE FIN]),ListeCours[UNIQUE]),ListeCours[UNIQUE],0),2),0)","v":0},{"$f":"IFERROR(INDEX(ListeCours[],MATCH(SUMPRODUCT((ListeCours[AGENDA]=EmploiDuTemps[[#Headers],[VENDREDI]])*(ROUNDDOWN($B53,10)>=ROUNDDOWN(ListeCours[HEURE DE DÉBUT],10))*($B53<=ListeCours[HEURE DE FIN]),ListeCours[UNIQUE]),ListeCours[UNIQUE],0),2),0)","v":0},{"$f":"IFERROR(INDEX(ListeCours[],MATCH(SUMPRODUCT((ListeCours[AGENDA]=EmploiDuTemps[[#Headers],[SAMEDI]])*(ROUNDDOWN($B53,10)>=ROUNDDOWN(ListeCours[HEURE DE DÉBUT],10))*($B53<=ListeCours[HEURE DE FIN]),ListeCours[UNIQUE]),ListeCours[UNIQUE],0),2),0)","v":0},{"$f":"IFERROR(INDEX(ListeCours[],MATCH(SUMPRODUCT((ListeCours[AGENDA]=EmploiDuTemps[[#Headers],[DIMANCHE]])*(ROUNDDOWN($B53,10)>=ROUNDDOWN(ListeCours[HEURE DE DÉBUT],10))*($B53<=ListeCours[HEURE DE FIN]),ListeCours[UNIQUE]),ListeCours[UNIQUE],0),2),0)","v":0}]
[null,"19:30:00",{"$f":"IFERROR(INDEX(ListeCours[],MATCH(SUMPRODUCT((ListeCours[AGENDA]=EmploiDuTemps[[#Headers],[LUNDI]])*(ROUNDDOWN($B54,10)>=ROUNDDOWN(ListeCours[HEURE DE DÉBUT],10))*($B54<=ListeCours[HEURE DE FIN]),ListeCours[UNIQUE]),ListeCours[UNIQUE],0),2),0)","v":0},{"$f":"IFERROR(INDEX(ListeCours[],MATCH(SUMPRODUCT((ListeCours[AGENDA]=EmploiDuTemps[[#Headers],[MARDI]])*(ROUNDDOWN($B54,10)>=ROUNDDOWN(ListeCours[HEURE DE DÉBUT],10))*($B54<=ListeCours[HEURE DE FIN]),ListeCours[UNIQUE]),ListeCours[UNIQUE],0),2),0)","v":0},{"$f":"IFERROR(INDEX(ListeCours[],MATCH(SUMPRODUCT((ListeCours[AGENDA]=EmploiDuTemps[[#Headers],[MERCREDI]])*(ROUNDDOWN($B54,10)>=ROUNDDOWN(ListeCours[HEURE DE DÉBUT],10))*($B54<=ListeCours[HEURE DE FIN]),ListeCours[UNIQUE]),ListeCours[UNIQUE],0),2),0)","v":0},{"$f":"IFERROR(INDEX(ListeCours[],MATCH(SUMPRODUCT((ListeCours[AGENDA]=EmploiDuTemps[[#Headers],[JEUDI]])*(ROUNDDOWN($B54,10)>=ROUNDDOWN(ListeCours[HEURE DE DÉBUT],10))*($B54<=ListeCours[HEURE DE FIN]),ListeCours[UNIQUE]),ListeCours[UNIQUE],0),2),0)","v":0},{"$f":"IFERROR(INDEX(ListeCours[],MATCH(SUMPRODUCT((ListeCours[AGENDA]=EmploiDuTemps[[#Headers],[VENDREDI]])*(ROUNDDOWN($B54,10)>=ROUNDDOWN(ListeCours[HEURE DE DÉBUT],10))*($B54<=ListeCours[HEURE DE FIN]),ListeCours[UNIQUE]),ListeCours[UNIQUE],0),2),0)","v":0},{"$f":"IFERROR(INDEX(ListeCours[],MATCH(SUMPRODUCT((ListeCours[AGENDA]=EmploiDuTemps[[#Headers],[SAMEDI]])*(ROUNDDOWN($B54,10)>=ROUNDDOWN(ListeCours[HEURE DE DÉBUT],10))*($B54<=ListeCours[HEURE DE FIN]),ListeCours[UNIQUE]),ListeCours[UNIQUE],0),2),0)","v":0},{"$f":"IFERROR(INDEX(ListeCours[],MATCH(SUMPRODUCT((ListeCours[AGENDA]=EmploiDuTemps[[#Headers],[DIMANCHE]])*(ROUNDDOWN($B54,10)>=ROUNDDOWN(ListeCours[HEURE DE DÉBUT],10))*($B54<=ListeCours[HEURE DE FIN]),ListeCours[UNIQUE]),ListeCours[UNIQUE],0),2),0)","v":0}]
[null,"19:45:00",{"$f":"IFERROR(INDEX(ListeCours[],MATCH(SUMPRODUCT((ListeCours[AGENDA]=EmploiDuTemps[[#Headers],[LUNDI]])*(ROUNDDOWN($B55,10)>=ROUNDDOWN(ListeCours[HEURE DE DÉBUT],10))*($B55<=ListeCours[HEURE DE FIN]),ListeCours[UNIQUE]),ListeCours[UNIQUE],0),2),0)","v":0},{"$f":"IFERROR(INDEX(ListeCours[],MATCH(SUMPRODUCT((ListeCours[AGENDA]=EmploiDuTemps[[#Headers],[MARDI]])*(ROUNDDOWN($B55,10)>=ROUNDDOWN(ListeCours[HEURE DE DÉBUT],10))*($B55<=ListeCours[HEURE DE FIN]),ListeCours[UNIQUE]),ListeCours[UNIQUE],0),2),0)","v":0},{"$f":"IFERROR(INDEX(ListeCours[],MATCH(SUMPRODUCT((ListeCours[AGENDA]=EmploiDuTemps[[#Headers],[MERCREDI]])*(ROUNDDOWN($B55,10)>=ROUNDDOWN(ListeCours[HEURE DE DÉBUT],10))*($B55<=ListeCours[HEURE DE FIN]),ListeCours[UNIQUE]),ListeCours[UNIQUE],0),2),0)","v":0},{"$f":"IFERROR(INDEX(ListeCours[],MATCH(SUMPRODUCT((ListeCours[AGENDA]=EmploiDuTemps[[#Headers],[JEUDI]])*(ROUNDDOWN($B55,10)>=ROUNDDOWN(ListeCours[HEURE DE DÉBUT],10))*($B55<=ListeCours[HEURE DE FIN]),ListeCours[UNIQUE]),ListeCours[UNIQUE],0),2),0)","v":0},{"$f":"IFERROR(INDEX(ListeCours[],MATCH(SUMPRODUCT((ListeCours[AGENDA]=EmploiDuTemps[[#Headers],[VENDREDI]])*(ROUNDDOWN($B55,10)>=ROUNDDOWN(ListeCours[HEURE DE DÉBUT],10))*($B55<=ListeCours[HEURE DE FIN]),ListeCours[UNIQUE]),ListeCours[UNIQUE],0),2),0)","v":0},{"$f":"IFERROR(INDEX(ListeCours[],MATCH(SUMPRODUCT((ListeCours[AGENDA]=EmploiDuTemps[[#Headers],[SAMEDI]])*(ROUNDDOWN($B55,10)>=ROUNDDOWN(ListeCours[HEURE DE DÉBUT],10))*($B55<=ListeCours[HEURE DE FIN]),ListeCours[UNIQUE]),ListeCours[UNIQUE],0),2),0)","v":0},{"$f":"IFERROR(INDEX(ListeCours[],MATCH(SUMPRODUCT((ListeCours[AGENDA]=EmploiDuTemps[[#Headers],[DIMANCHE]])*(ROUNDDOWN($B55,10)>=ROUNDDOWN(ListeCours[HEURE DE DÉBUT],10))*($B55<=ListeCours[HEURE DE FIN]),ListeCours[UNIQUE]),ListeCours[UNIQUE],0),2),0)","v":0}]
[null,"20:00:00",{"$f":"IFERROR(INDEX(ListeCours[],MATCH(SUMPRODUCT((ListeCours[AGENDA]=EmploiDuTemps[[#Headers],[LUNDI]])*(ROUNDDOWN($B56,10)>=ROUNDDOWN(ListeCours[HEURE DE DÉBUT],10))*($B56<=ListeCours[HEURE DE FIN]),ListeCours[UNIQUE]),ListeCours[UNIQUE],0),2),0)","v":0},{"$f":"IFERROR(INDEX(ListeCours[],MATCH(SUMPRODUCT((ListeCours[AGENDA]=EmploiDuTemps[[#Headers],[MARDI]])*(ROUNDDOWN($B56,10)>=ROUNDDOWN(ListeCours[HEURE DE DÉBUT],10))*($B56<=ListeCours[HEURE DE FIN]),ListeCours[UNIQUE]),ListeCours[UNIQUE],0),2),0)","v":0},{"$f":"IFERROR(INDEX(ListeCours[],MATCH(SUMPRODUCT((ListeCours[AGENDA]=EmploiDuTemps[[#Headers],[MERCREDI]])*(ROUNDDOWN($B56,10)>=ROUNDDOWN(ListeCours[HEURE DE DÉBUT],10))*($B56<=ListeCours[HEURE DE FIN]),ListeCours[UNIQUE]),ListeCours[UNIQUE],0),2),0)","v":0},{"$f":"IFERROR(INDEX(ListeCours[],MATCH(SUMPRODUCT((ListeCours[AGENDA]=EmploiDuTemps[[#Headers],[JEUDI]])*(ROUNDDOWN($B56,10)>=ROUNDDOWN(ListeCours[HEURE DE DÉBUT],10))*($B56<=ListeCours[HEURE DE FIN]),ListeCours[UNIQUE]),ListeCours[UNIQUE],0),2),0)","v":0},{"$f":"IFERROR(INDEX(ListeCours[],MATCH(SUMPRODUCT((ListeCours[AGENDA]=EmploiDuTemps[[#Headers],[VENDREDI]])*(ROUNDDOWN($B56,10)>=ROUNDDOWN(ListeCours[HEURE DE DÉBUT],10))*($B56<=ListeCours[HEURE DE FIN]),ListeCours[UNIQUE]),ListeCours[UNIQUE],0),2),0)","v":0},{"$f":"IFERROR(INDEX(ListeCours[],MATCH(SUMPRODUCT((ListeCours[AGENDA]=EmploiDuTemps[[#Headers],[SAMEDI]])*(ROUNDDOWN($B56,10)>=ROUNDDOWN(ListeCours[HEURE DE DÉBUT],10))*($B56<=ListeCours[HEURE DE FIN]),ListeCours[UNIQUE]),ListeCours[UNIQUE],0),2),0)","v":0},{"$f":"IFERROR(INDEX(ListeCours[],MATCH(SUMPRODUCT((ListeCours[AGENDA]=EmploiDuTemps[[#Headers],[DIMANCHE]])*(ROUNDDOWN($B56,10)>=ROUNDDOWN(ListeCours[HEURE DE DÉBUT],10))*($B56<=ListeCours[HEURE DE FIN]),ListeCours[UNIQUE]),ListeCours[UNIQUE],0),2),0)","v":0}]

{"sheet":"Liste des cours","index":2,"n_rows":11,"n_cols":8,"rows_kept":11,"cut":false,"hidden":false,"merged":[[0,1,0,5],[0,6,0,7]]}
[null,"LISTE DES COURS",null,null,null,null,"Emploi du temps"]
[null,"COURS","ID","AGENDA","LIEU","HEURE DE DÉBUT","HEURE DE FIN","UNIQUE"]
[null,"Français","FR-121","LUNDI","Bâtiment A","13:00:00","14:00:00",{"$f":"ROW()-ROW(ListeCours[[#Headers],[UNIQUE]])","v":1}]
[null,"Anglais","ANG-121","JEUDI","Bâtiment A","13:00:00","14:00:00",{"$f":"ROW()-ROW(ListeCours[[#Headers],[UNIQUE]])","v":2}]
[null,"Histoire-Géo","HG-111","LUNDI","Bâtiment B","16:00:00","17:00:00",{"$f":"ROW()-ROW(ListeCours[[#Headers],[UNIQUE]])","v":3}]
[null,"Biologie","SVT-295","MARDI","Bâtiment B","11:00:00","12:00:00",{"$f":"ROW()-ROW(ListeCours[[#Headers],[UNIQUE]])","v":4}]
[null,"Physiques-Chimie","PC-295","MERCREDI","Bâtiment B","11:00:00","12:00:00",{"$f":"ROW()-ROW(ListeCours[[#Headers],[UNIQUE]])","v":5}]
[null,"Mathématiques","MTH-113","MARDI","Bâtiment C","08:00:00","09:30:00",{"$f":"ROW()-ROW(ListeCours[[#Headers],[UNIQUE]])","v":6}]
[null,"Philosophie","PHL-113","VENDREDI","Bâtiment C","08:10:00","09:15:00",{"$f":"ROW()-ROW(ListeCours[[#Headers],[UNIQUE]])","v":7}]
[null,"Allemand","ALM-113","SAMEDI","Bâtiment C","08:10:00","09:15:00",{"$f":"ROW()-ROW(ListeCours[[#Headers],[UNIQUE]])","v":8}]
[null,"Espagnol","ESP-001","DIMANCHE","CEG 1","10:15:00","12:00:00",{"$f":"ROW()-ROW(ListeCours[[#Headers],[UNIQUE]])","v":9}]

{"sheet":"NOTES DEVOIRS","index":3,"n_rows":61,"n_cols":11,"rows_kept":61,"cut":false,"hidden":false,"merged":[]}
[]
[]
[null,null,"Moy DP",13.5]
[null,null,"Moy DG",11.5]
[null,null,"Moy Mat.",{"$f":"(D3+D4)/2","v":12.5}]
[]
[]
[]
[null,"ELEVES","CLASSE","COLLEGE","Colonne1","MATIERES","COEFF","DATE DEVOIR","TYPE DEV","NOTE/20","NOTE COEFF"]
[null,"LEGBA Chimène","Tle D","CEG 1",null,"SVT",3,"2019-05-06","DP",12,{"$f":"Tableau1[[#This Row],[NOTE/20]]*Tableau1[[#This Row],[COEFF]]","v":36}]
[null,null,null,null,null,null,null,null,null,null,{"$f":"Tableau1[[#This Row],[NOTE/20]]*Tableau1[[#This Row],[COEFF]]","v":0}]
[null,null,null,null,null,null,null,null,null,null,{"$f":"Tableau1[[#This Row],[NOTE/20]]*Tableau1[[#This Row],[COEFF]]","v":0}]
[null,null,null,null,null,null,null,null,null,null,{"$f":"Tableau1[[#This Row],[NOTE/20]]*Tableau1[[#This Row],[COEFF]]","v":0}]
[null,null,null,null,null,null,null,null,null,null,{"$f":"Tableau1[[#This Row],[NOTE/20]]*Tableau1[[#This Row],[COEFF]]","v":0}]
[null,null,null,null,null,null,null,null,null,null,{"$f":"Tableau1[[#This Row],[NOTE/20]]*Tableau1[[#This Row],[COEFF]]","v":0}]
[null,null,null,null,null,null,null,null,null,null,{"$f":"Tableau1[[#This Row],[NOTE/20]]*Tableau1[[#This Row],[COEFF]]","v":0}]
[null,null,null,null,null,null,null,null,null,null,{"$f":"Tableau1[[#This Row],[NOTE/20]]*Tableau1[[#This Row],[COEFF]]","v":0}]
[null,null,null,null,null,null,null,null,null,null,{"$f":"Tableau1[[#This Row],[NOTE/20]]*Tableau1[[#This Row],[COEFF]]","v":0}]
[null,null,null,null,null,null,null,null,null,null,{"$f":"Tableau1[[#This Row],[NOTE/20]]*Tableau1[[#This Row],[COEFF]]","v":0}]
[null,null,null,null,null,null,null,null,null,null,{"$f":"Tableau1[[#This Row],[NOTE/20]]*Tableau1[[#This Row],[COEFF]]","v":0}]
[null,null,null,null,null,null,null,null,null,null,{"$f":"Tableau1[[#This Row],[NOTE/20]]*Tableau1[[#This Row],[COEFF]]","v":0}]
[null,null,null,null,null,null,null,null,null,null,{"$f":"Tableau1[[#This Row],[NOTE/20]]*Tableau1[[#This Row],[COEFF]]","v":0}]
[null,null,null,null,null,null,null,null,null,null,{"$f":"Tableau1[[#This Row],[NOTE/20]]*Tableau1[[#This Row],[COEFF]]","v":0}]
[null,null,null,null,null,null,null,null,null,null,{"$f":"Tableau1[[#This Row],[NOTE/20]]*Tableau1[[#This Row],[COEFF]]","v":0}]
[null,null,null,null,null,null,null,null,null,null,{"$f":"Tableau1[[#This Row],[NOTE/20]]*Tableau1[[#This Row],[COEFF]]","v":0}]
[null,null,null,null,null,null,null,null,null,null,{"$f":"Tableau1[[#This Row],[NOTE/20]]*Tableau1[[#This Row],[COEFF]]","v":0}]
[null,null,null,null,null,null,null,null,null,null,{"$f":"Tableau1[[#This Row],[NOTE/20]]*Tableau1[[#This Row],[COEFF]]","v":0}]
[null,null,null,null,null,null,null,null,null,null,{"$f":"Tableau1[[#This Row],[NOTE/20]]*Tableau1[[#This Row],[COEFF]]","v":0}]
[null,null,null,null,null,null,null,null,null,null,{"$f":"Tableau1[[#This Row],[NOTE/20]]*Tableau1[[#This Row],[COEFF]]","v":0}]
[null,null,null,null,null,null,null,null,null,null,{"$f":"Tableau1[[#This Row],[NOTE/20]]*Tableau1[[#This Row],[COEFF]]","v":0}]
[null,null,null,null,null,null,null,null,null,null,{"$f":"Tableau1[[#This Row],[NOTE/20]]*Tableau1[[#This Row],[COEFF]]","v":0}]
[null,null,null,null,null,null,null,null,null,null,{"$f":"Tableau1[[#This Row],[NOTE/20]]*Tableau1[[#This Row],[COEFF]]","v":0}]
[null,null,null,null,null,null,null,null,null,null,{"$f":"Tableau1[[#This Row],[NOTE/20]]*Tableau1[[#This Row],[COEFF]]","v":0}]
[null,null,null,null,null,null,null,null,null,null,{"$f":"Tableau1[[#This Row],[NOTE/20]]*Tableau1[[#This Row],[COEFF]]","v":0}]
[null,null,null,null,null,null,null,null,null,null,{"$f":"Tableau1[[#This Row],[NOTE/20]]*Tableau1[[#This Row],[COEFF]]","v":0}]
[null,null,null,null,null,null,null,null,null,null,{"$f":"Tableau1[[#This Row],[NOTE/20]]*Tableau1[[#This Row],[COEFF]]","v":0}]
[null,null,null,null,null,null,null,null,null,null,{"$f":"Tableau1[[#This Row],[NOTE/20]]*Tableau1[[#This Row],[COEFF]]","v":0}]
[null,null,null,null,null,null,null,null,null,null,{"$f":"Tableau1[[#This Row],[NOTE/20]]*Tableau1[[#This Row],[COEFF]]","v":0}]
[null,null,null,null,null,null,null,null,null,null,{"$f":"Tableau1[[#This Row],[NOTE/20]]*Tableau1[[#This Row],[COEFF]]","v":0}]
[null,null,null,null,null,null,null,null,null,null,{"$f":"Tableau1[[#This Row],[NOTE/20]]*Tableau1[[#This Row],[COEFF]]","v":0}]
[null,null,null,null,null,null,null,null,null,null,{"$f":"Tableau1[[#This Row],[NOTE/20]]*Tableau1[[#This Row],[COEFF]]","v":0}]
[null,null,null,null,null,null,null,null,null,null,{"$f":"Tableau1[[#This Row],[NOTE/20]]*Tableau1[[#This Row],[COEFF]]","v":0}]
[null,null,null,null,null,null,null,null,null,null,{"$f":"Tableau1[[#This Row],[NOTE/20]]*Tableau1[[#This Row],[COEFF]]","v":0}]
[null,null,null,null,null,null,null,null,null,null,{"$f":"Tableau1[[#This Row],[NOTE/20]]*Tableau1[[#This Row],[COEFF]]","v":0}]
[null,null,null,null,null,null,null,null,null,null,{"$f":"Tableau1[[#This Row],[NOTE/20]]*Tableau1[[#This Row],[COEFF]]","v":0}]
[null,null,null,null,null,null,null,null,null,null,{"$f":"Tableau1[[#This Row],[NOTE/20]]*Tableau1[[#This Row],[COEFF]]","v":0}]
[null,null,null,null,null,null,null,null,null,null,{"$f":"Tableau1[[#This Row],[NOTE/20]]*Tableau1[[#This Row],[COEFF]]","v":0}]
[null,null,null,null,null,null,null,null,null,null,{"$f":"Tableau1[[#This Row],[NOTE/20]]*Tableau1[[#This Row],[COEFF]]","v":0}]
[null,null,null,null,null,null,null,null,null,null,{"$f":"Tableau1[[#This Row],[NOTE/20]]*Tableau1[[#This Row],[COEFF]]","v":0}]
[null,null,null,null,null,null,null,null,null,null,{"$f":"Tableau1[[#This Row],[NOTE/20]]*Tableau1[[#This Row],[COEFF]]","v":0}]
[null,null,null,null,null,null,null,null,null,null,{"$f":"Tableau1[[#This Row],[NOTE/20]]*Tableau1[[#This Row],[COEFF]]","v":0}]
[null,null,null,null,null,null,null,null,null,null,{"$f":"Tableau1[[#This Row],[NOTE/20]]*Tableau1[[#This Row],[COEFF]]","v":0}]
[null,null,null,null,null,null,null,null,null,null,{"$f":"Tableau1[[#This Row],[NOTE/20]]*Tableau1[[#This Row],[COEFF]]","v":0}]
[null,null,null,null,null,null,null,null,null,null,{"$f":"Tableau1[[#This Row],[NOTE/20]]*Tableau1[[#This Row],[COEFF]]","v":0}]
[null,null,null,null,null,null,null,null,null,null,{"$f":"Tableau1[[#This Row],[NOTE/20]]*Tableau1[[#This Row],[COEFF]]","v":0}]
[null,null,null,null,null,null,null,null,null,null,{"$f":"Tableau1[[#This Row],[NOTE/20]]*Tableau1[[#This Row],[COEFF]]","v":0}]
[null,null,null,null,null,null,null,null,null,null,{"$f":"Tableau1[[#This Row],[NOTE/20]]*Tableau1[[#This Row],[COEFF]]","v":0}]
[null,null,null,null,null,null,null,null,null,null,{"$f":"Tableau1[[#This Row],[NOTE/20]]*Tableau1[[#This Row],[COEFF]]","v":0}]
[null,null,null,null,null,null,null,null,null,null,{"$f":"Tableau1[[#This Row],[NOTE/20]]*Tableau1[[#This Row],[COEFF]]","v":0}]
[null,null,null,null,null,null,null,null,null,null,{"$f":"Tableau1[[#This Row],[NOTE/20]]*Tableau1[[#This Row],[COEFF]]","v":0}]
[null,{"$f":"SUBTOTAL(103,Tableau1[ELEVES])","v":1},null,null,null,null,{"$f":"SUBTOTAL(102,Tableau1[COEFF])","v":1},null,null,{"$f":"SUBTOTAL(101,Tableau1[NOTE/20])","v":12},{"$f":"SUBTOTAL(109,Tableau1[NOTE COEFF])","v":36}]

{"sheet":"RELEVE GLOBAL","index":4,"n_rows":29,"n_cols":25,"rows_kept":29,"cut":false,"hidden":false,"merged":[[22,24,22,25],[21,24,21,25],[20,24,20,25],[19,24,19,25],[18,24,18,25],[17,24,17,25],[3,24,3,25],[4,24,4,25],[6,24,6,25],[5,24,5,25],[10,24,10,25],[9,24,9,25],[8,24,8,25],[7,24,7,25],[16,24,16,25],[15,24,15,25],[14,24,14,25],[13,24,13,25],[12,24,12,25],[11,24,11,25],[27,24,27,25],[26,24,26,25],[25,24,25,25],[24,24,24,25],[23,24,23,25],[28,11,28,12],[28,13,28,14],[28,15,28,16],[28,17,28,18],[28,19,28,20],[28,22,28,23],[27,13,27,14],[27,15,27,16],[27,17,27,18],[27,19,27,20],[27,22,27,23],[27,11,27,12],[26,11,26,12],[26,13,26,14],[26,15,26,16],[26,17,26,18],[26,19,26,20],[26,22,26,23],[25,13,25,14],[28,1,28,2],[28,3,28,4],[28,5,28,6],[28,7,28,8],[28,9,28,10],[27,1,27,2],[27,3,27,4],[27,5,27,6],[27,7,27,8],[27,9,27,10],[25,15,25,16],[25,17,25,18],[25,19,25,20],[25,22,25,23],[26,1,26,2],[26,3,26,4],[26,5,26,6],[26,7,26,8],[26,9,26,10],[25,1,25,2],[25,3,25,4],[25,5,25,6],[25,7,25,8],[25,9,25,10],[25,11,25,12],[24,11,24,12],[24,13,24,14],[24,15,24,16],[24,17,24,18],[24,19,24,20],[24,22,24,23],[23,13,23,14],[23,15,23,16],[23,17,23,18],[23,19,23,20],[23,22,23,23],[23,11,23,12],[24,1,24,2],[24,3,24,4],[24,5,24,6],[24,7,24,8],[24,9,24,10],[23,1,23,2],[23,3,23,4],[23,5,23,6],[23,7,23,8],[23,9,23,10],[22,11,22,12],[22,13,22,14],[22,15,22,16],[22,17,22,18],[22,19,22,20],[22,22,22,23],[21,13,21,14],[21,15,21,16],[21,17,21,18],[21,19,21,20],[21,22,21,23],[21,11,21,12],[22,1,22,2],[22,3,22,4],[22,5,22,6],[22,7,22,8],[22,9,22,10],[21,1,21,2],[21,3,21,4],[21,5,21,6],[21,7,21,8],[21,9,21,10],[20,11,20,12],[20,13,20,14],[20,15,20,16],[20,17,20,18],[20,19,20,20],[20,22,20,23],[19,13,19,14],[19,15,19,16],[19,17,19,18],[19,19,19,20],[19,22,19,23],[19,11,19,12],[20,1,20,2],[20,3,20,4],[20,5,20,6],[20,7,20,8],[20,9,20,10],[19,1,19,2],[19,3,19,4],[19,5,19,6],[19,7,19,8],[19,9,19,10],[18,11,18,12],[18,13,18,14],[18,15,18,16],[18,17,18,18],[18,19,18,20],[18,22,18,23],[17,13,17,14],[17,15,17,16],[17,17,17,18],[17,19,17,20],[17,22,17,23],[17,11,17,12],[18,1,18,2],[18,3,18,4],[18,5,18,6],[18,7,18,8],[18,9,18,10],[17,1,17,2],[17,3,17,4],[17,5,17,6],[17,7,17,8],[17,9,17,10],[16,11,16,12],[16,13,16,14],[16,15,16,16],[16,17,16,18],[16,19,16,20],[16,22,16,23],[15,13,15,14],[15,15,15,16],[15,17,15,18],[15,19,15,20],[15,22,15,23],[15,11,15,12],[16,1,16,2],[16,3,16,4],[16,5,16,6],[16,7,16,8],[16,9,16,10],[15,1,15,2],[15,3,15,4],[15,5,15,6],[15,7,15,8],[15,9,15,10],[14,11,14,12],[14,13,14,14],[14,15,14,16],[14,17,14,18],[14,19,14,20],[14,22,14,23],[13,13,13,14],[13,15,13,16],[13,17,13,18],[13,19,13,20],[13,22,13,23],[13,11,13,12],[14,1,14,2],[14,3,14,4],[14,5,14,6],[14,7,14,8],[14,9,14,10],[13,1,13,2],[13,3,13,4],[13,5,13,6],[13,7,13,8],[13,9,13,10],[12,11,12,12],[12,13,12,14],[12,15,12,16],[12,17,12,18],[12,19,12,20],[12,22,12,23],[11,13,11,14],[11,15,11,16],[11,17,11,18],[11,19,11,20],[11,22,11,23],[11,11,11,12],[12,1,12,2],[12,3,12,4],[12,5,12,6],[12,7,12,8],[12,9,12,10],[11,1,11,2],[11,3,11,4],[11,5,11,6],[11,7,11,8],[11,9,11,10],[10,11,10,12],[10,13,10,14],[10,15,10,16],[10,17,10,18],[10,19,10,20],[10,22,10,23],[9,13,9,14],[9,15,9,16],[9,17,9,18],[9,19,9,20],[9,22,9,23],[9,11,9,12],[10,1,10,2],[10,3,10,4],[10,5,10,6],[10,7,10,8],[10,9,10,10],[9,1,9,2],[9,3,9,4],[9,5,9,6],[9,7,9,8],[9,9,9,10],[8,11,8,12],[8,13,8,14],[8,15,8,16],[8,17,8,18],[8,19,8,20],[8,22,8,23],[7,13,7,14],[7,15,7,16],[7,17,7,18],[7,19,7,20],[7,22,7,23],[7,11,7,12],[8,1,8,2],[8,3,8,4],[8,5,8,6],[8,7,8,8],[8,9,8,10],[7,1,7,2],[7,3,7,4],[7,5,7,6],[7,7,7,8],[7,9,7,10],[6,11,6,12],[6,13,6,14],[6,15,6,16],[6,17,6,18],[6,19,6,20],[6,22,6,23],[5,13,5,14],[5,15,5,16],[5,17,5,18],[5,19,5,20],[5,22,5,23],[5,11,5,12],[6,1,6,2],[6,3,6,4],[6,5,6,6],[6,7,6,8],[6,9,6,10],[5,1,5,2],[5,3,5,4],[5,5,5,6],[5,7,5,8],[5,9,5,10],[4,11,4,12],[4,13,4,14],[4,15,4,16],[4,17,4,18],[4,19,4,20],[4,22,4,23],[3,13,3,14],[3,15,3,16],[3,17,3,18],[3,19,3,20],[3,22,3,23],[3,11,3,12],[4,1,4,2],[4,3,4,4],[4,5,4,6],[4,7,4,8],[4,9,4,10],[3,1,3,2],[3,3,3,4],[3,5,3,6],[3,7,3,8],[3,9,3,10]]}
["Relevé de notes des élèves de la classe *********"]
[]
[]
["/20","Français",null,"Mathématiques",null,"Histoire-Géographie",null,"Langue Vivante 1",null,"Langue Vivante 2",null,"SVT",null,"Physique-Chimie",null,"Art Plastique",null,"Musique",null,"Sport",null,"/20","Moyenne",null,"Décision"]
["Elève 1",12,null,15,null,8,null,14,null,9,null,14,null,12.5,null,13,null,14,null,10,null,"Elève 1",{"$f":"SUM(B5,D5,F5,H5,J5,L5,N5,P5,R5,T5)/10","v":12.15},null,{"$f":"IF(W5>9.99,\"PASSE\",\"REDOUBLE\")","v":"PASSE"}]
["Elève 2",8,null,6,null,9,null,10,null,9,null,8,null,7,null,10,null,10,null,10,null,"Elève 2",{"$f":"SUM(B6,D6,F6,H6,J6,L6,N6,P6,R6,T6)/10","v":8.6999999999999993},null,{"$f":"IF(W6>9.99,\"PASSE\",\"REDOUBLE\")","v":"REDOUBLE"}]
["Elève 3",11,null,9,null,14,null,12,null,11,null,10,null,13,null,11,null,11,null,11,null,"Elève 3",{"$f":"SUM(B7,D7,F7,H7,J7,L7,N7,P7,R7,T7)/10","v":11.3},null,"PASSE"]
["Elève 4",14,null,14,null,12,null,11,null,15,null,17,null,12,null,10,null,11,null,12,null,"Elève 4",12.8,null,"PASSE"]
["Elève 5",null,null,null,null,null,null,null,null,null,null,null,null,null,null,null,null,null,null,null,null,"Elève 5",0,null,"REDOUBLE"]
["Elève 6",null,null,null,null,null,null,null,null,null,null,null,null,null,null,null,null,null,null,null,null,"Elève 6",0,null,"REDOUBLE"]
["Elève 7",null,null,null,null,null,null,null,null,null,null,null,null,null,null,null,null,null,null,null,null,"Elève 7",0,null,"REDOUBLE"]
["Elève 8",null,null,null,null,null,null,null,null,null,null,null,null,null,null,null,null,null,null,null,null,"Elève 8",0,null,"REDOUBLE"]
["Elève 9",null,null,null,null,null,null,null,null,null,null,null,null,null,null,null,null,null,null,null,null,"Elève 9",0,null,"REDOUBLE"]
["Elève 10",null,null,null,null,null,null,null,null,null,null,null,null,null,null,null,null,null,null,null,null,"Elève 10",0,null,"REDOUBLE"]
["Elève 11",null,null,null,null,null,null,null,null,null,null,null,null,null,null,null,null,null,null,null,null,"Elève 11",0,null,"REDOUBLE"]
["Elève 12",null,null,null,null,null,null,null,null,null,null,null,null,null,null,null,null,null,null,null,null,"Elève 12",0,null,"REDOUBLE"]
["Elève 13",null,null,null,null,null,null,null,null,null,null,null,null,null,null,null,null,null,null,null,null,"Elève 13",0,null,"REDOUBLE"]
["Elève 14",null,null,null,null,null,null,null,null,null,null,null,null,null,null,null,null,null,null,null,null,"Elève 14",0,null,"REDOUBLE"]
["Elève 15",null,null,null,null,null,null,null,null,null,null,null,null,null,null,null,null,null,null,null,null,"Elève 15",0,null,"REDOUBLE"]
["Elève 16",null,null,null,null,null,null,null,null,null,null,null,null,null,null,null,null,null,null,null,null,"Elève 16",0,null,"REDOUBLE"]
["Elève 17",null,null,null,null,null,null,null,null,null,null,null,null,null,null,null,null,null,null,null,null,"Elève 17",0,null,"REDOUBLE"]
["Elève 18",null,null,null,null,null,null,null,null,null,null,null,null,null,null,null,null,null,null,null,null,"Elève 18",0,null,"REDOUBLE"]
["Elève 19",null,null,null,null,null,null,null,null,null,null,null,null,null,null,null,null,null,null,null,null,"Elève 19",0,null,"REDOUBLE"]
["Elève 20",null,null,null,null,null,null,null,null,null,null,null,null,null,null,null,null,null,null,null,null,"Elève 20",0,null,"REDOUBLE"]
["Elève 21",null,null,null,null,null,null,null,null,null,null,null,null,null,null,null,null,null,null,null,null,"Elève 21",0,null,"REDOUBLE"]
["Elève 22",null,null,null,null,null,null,null,null,null,null,null,null,null,null,null,null,null,null,null,null,"Elève 22",0,null,"REDOUBLE"]
["Elève 23",null,null,null,null,null,null,null,null,null,null,null,null,null,null,null,null,null,null,null,null,"Elève 23",0,null,"REDOUBLE"]
["Elève 24",null,null,null,null,null,null,null,null,null,null,null,null,null,null,null,null,null,null,null,null,"Elève 24",0,null,"REDOUBLE"]
["Moyenne de Classe",{"$f":"AVERAGE(B5,B6,B7,B8,B9,B10,B11,B12,B13,B14,B15,B16,B17,B18,B19,B20,B21,B22,B23,B24,B25,B26,B27,B28)","v":11.25},null,{"$f":"AVERAGE(D5,D6,D7,D8,D9,D10,D11,D12,D13,D14,D15,D16,D17,D18,D19,D20,D21,D22,D23,D24,D25,D27,D28)","v":11},null,{"$f":"AVERAGE(F5,F6,F7,F8,F9,F10,F11,F12,F13,F14,F15,F16,F17,F18,F19,F20,F21,F22,F23,F24,F25,F26,F27,F28)","v":10.75},null,{"$f":"AVERAGE(H5,H6,H7,H8,H9,H10,H11,H12,H13,H14,H15,H16,H17,H18,H19,H20,H21,H22,H23,H24,H25,H26,H27,H28)","v":11.75},null,{"$f":"AVERAGE(J5,J6,J7,J8,J9,J10,J11,J12,J13,J14,J15,J16,J17,J18,J19,J20,J21,J22,J23,J24,J25,J26,J27,J28)","v":11},null,{"$f":"AVERAGE(L5,L6,L7,L8,L9,L10,L11,L12,L13,L14,L15,L16,L17,L18,L19,L20,L21,L22,L23,L24,L25,L26,L27,L28)","v":12.25},null,{"$f":"AVERAGE(N5,N6,N7,N8,N9,N10,N11,N12,N13,N14,N15,N16,N17,N18,N19,N20,N21,N22,N23,N24,N25,N26,N27,N28)","v":11.125},null,{"$f":"AVERAGE(P5,P6,P7,P8,P9,P10,P11,P12,P13,P14,P15,P16,P17,P18,P19,P20,P21,P22,P23,P24,P25,P26,P27,P28)","v":11},null,{"$f":"AVERAGE(R5,R6,R7,R8,R9,R10,R11,R12,R13,R14,R15,R16,R17,R18,R19,R20,R21,R22,R23,R24,R25,R26,R27,R28)","v":11.5},null,{"$f":"AVERAGE(T5,T6,T7,T8,T9,T10,T11,T12,T13,T14,T15,T16,T17,T18,T19,T20,T21,T22,T23,T24,T25,T26,T27,T28)","v":10.75},null,"Moyenne de Classe",{"$f":"AVERAGE(W5:X28)","v":1.8729166666666668}]